Workbook

Sheet GSHP Calculator
U1: Room AC | V1: before 2006 (10) | W1: 2006 & after (13) | X1: 14.5 SEER | Y1: No COOLING | AA1: MBTU to CF conversion | AB1: 1.032 | AG1: Lookup by Fuel Type | AJ1: Unit | AK1: Cost per | AL1: MBtu per | AQ1: 1 | AS1: 3 | AT1: 4 | AU1: 5 | AV1: 6 | AW1: 7 | AX1: 8 | AY1: 9 | AZ1: 10 | BA1: 11
T2: Base Case Cooling Systems | V2: Unit | W2: Unit | X2: Const Spd | AG2: Fuels | AI2: eff | AJ2: Name | AK2: Unit | AL2: Unit | AM2: Electric Utility/Source | AS2: htg full | AT2: htg part | AU2: clg full | AV2: clg part
T3: Rated SEER (Btu/Wh) | U3: 11 | V3: 10 | W3: 13 | X3: 14.5 | Y3: 99 | AG3: Elect Resist | AH3: per kWh | AI3: =HLOOKUP($D$24,$AH$16:$AJ$27,2) ->  | AJ3: (kWh) | AK3: ='Fuel 1 - Savings Calculator'!H7 ->  | AL3: 3.412 | AM3: ='Fuel 1 - Savings Calculator'!B5&" - "&'Fuel 1 - Savings Calculator'!F7 ->  | AO3: Electric | AQ3: Closed (GLHP) | AS3: 1.08 | AT3: 1 | AU3: 1.09 | AV3: 1 | AW3: (GLHP rating) Full at 32F | AX3: (GLHP rating) Part at 41F | AY3: (GLHP rating) Full at 77F | AZ3: (GLHP rating) Full at 68F | BA3: (GLHP rating, full):
G4: Values that "Override" default values | AG4: Std ASHP | AH4: per kWh | AI4: =HLOOKUP($D$24,$AH$16:$AJ$27,3) ->  | AJ4: =AJ3 -> (kWh) | AK4: =AK3 ->  | AL4: =AL3 -> 3.412 | AM4: =AM3 ->  | AO4: Electric | AQ4: Open (GWLP) | AS4: 1 | AT4: 1 | AU4: 1.09 | AV4: 1.09 | AW4: (GWHP rating) Full at 50F | AX4: (GWHP rating) Part at 50F | AY4: (GWHP rating) Full at 59F | AZ4: (GWHP rating) Part at 59F | BA4: (GWHP rating, full):
G5: Light grey values used in calculations/diagnostics | AG5: Fuel Oil - Furnace | AH5: per gal | AI5: =HLOOKUP($D$24,$AH$16:$AJ$27,4) ->  | AJ5: (gal) | AK5: ='Fuel 1 - Savings Calculator'!H3 ->  | AL5: 139 | AM5: ='Fuel 1 - Savings Calculator'!F3&" - "&'Fuel 1 - Savings Calculator'!H77 -> - 2022-2023 Avg | AO5: Fuel Oil
AG6: Fuel Oil - Boiler | AH6: per gal | AI6: =HLOOKUP($D$24,$AH$16:$AJ$27,5) ->  | AJ6: =AJ5 -> (gal) | AK6: =AK5 ->  | AL6: =AL5 -> 139 | AM6: =AM5 -> - 2022-2023 Avg | AO6: Fuel Oil | AP6: current | AQ6: =VLOOKUP($G$8,$AQ$3:$BA$4,AQ$1,) ->  | AS6: =VLOOKUP($G$8,$AQ$3:$BA$4,AS$1,) -> 
C7: Ground Source Heat Pump | M7: Customer Information | AG7: Natural Gas - Furnace | AH7: per therm | AI7: =HLOOKUP($D$24,$AH$16:$AJ$27,6) ->  | AJ7: (therms) | AK7: ='Fuel 1 - Savings Calculator'!H4 ->  | AL7: 100 | AM7: ='Fuel 1 - Savings Calculator'!B6 -> 0 | AO7: Natural Gas
C8: Building Heating Load (Manual J): | F8: Btu/h Sys Type: | H8: DHW Option | I8: =N39 -> 0 | AD8: Std GSHP | AE8: DHW | AF8: DHW | AG8: Natural Gas - Boiler | AH8: per therm | AI8: =HLOOKUP($D$24,$AH$16:$AJ$27,7) ->  | AJ8: =AJ7 -> (therms) | AK8: =AK7 ->  | AL8: =AL7 -> 100 | AM8: =AM7 -> 0 | AO8: Natural Gas
B9: GSHP System | C9: AHRI/ISO 13256-1 Rated Data | F9: GSHP Unit Type | AC9: Base Calcs | AD9: HSPF Factor | AE9: T_main | AF9: Fhtg,mode | AG9: Propane - Furnace | AH9: per gal | AI9: =HLOOKUP($D$24,$AH$16:$AJ$27,8) ->  | AJ9: (gal) | AK9: ='Fuel 1 - Savings Calculator'!H5 ->  | AL9: 92 | AM9: ='Fuel 1 - Savings Calculator'!F5&" - "&'Fuel 1 - Savings Calculator'!H105 -> - 2022-2023 Avg | AO9: Propane
C10: =IF(ISERROR("Heating COP "&AW6),"","Heating COP "&AW6) ->  | F10: =_xlfn.IFNA("Htg Capacity "&BA6,"") ->  | I10: Btu/h Total Installed Cost: | M10: Name: | AC10: City | AG10: Propane - Boiler | AH10: per gal | AI10: =HLOOKUP($D$24,$AH$16:$AJ$27,9) ->  | AJ10: =AJ9 -> (gal) | AK10: =AK9 ->  | AL10: =AL9 -> 92 | AM10: =AM9 -> - 2022-2023 Avg | AO10: Propane
C11: =IF(ISERROR("Heating COP "&AX6),"","Heating COP "&AX6) ->  | F11: Heating Sizing Fraction: | H11: =E8/(H10+1E-20) -> 0 | AB11: NYC | AC11: New York | AD11: 0.8 | AE11: 61.4 | AF11: 0.72 | AG11: Wood | AH11: per cord | AI11: =HLOOKUP($D$24,$AH$16:$AJ$27,10) ->  | AJ11: (cord) | AK11: ='Fuel 1 - Savings Calculator'!H8 -> 225 | AL11: 24000 | AM11: Statewide Dec-18 | AO11: Wood
C12: =IF(ISERROR("Cooling EER "&AY6),"","Cooling EER "&AY6) ->  | G12: ='TRM lookup tables'!B2 -> NoCity | I12: Heating Load: | J12: =IF(G26>0,G26*G25*I25/1000,F14*E8/1000000) -> 0 | K12: MMBtu/yr | M12: Address: | AB12: Western | AC12: Buffalo | AD12: 0.73 | AE12: 54.3 | AF12: 0.86 | AG12: Wood Pellets | AH12: per ton | AI12: =HLOOKUP($D$24,$AH$16:$AJ$27,11) ->  | AJ12: (ton) | AK12: ='Fuel 1 - Savings Calculator'!H9 ->  | AL12: =16500 -> 16500 | AM12: ='Fuel 1 - Savings Calculator'!F9&" - "&'Fuel 1 - Savings Calculator'!H118 ->  | AO12: Wood
C13: =IF(ISERROR("Cooling EER "&AZ6),"","Cooling EER "&AZ6) ->  | F13: Weather Region: | G13: =_xlfn.IFNA(VLOOKUP(N16,'Fuel 1 - Savings Calculator'!M:W,11,),"NoRegion") -> NoRegion | K13: =IF(G26,"(Meas Fuel)","(TRM)") -> (TRM) | AB13: Central | AC13: Binghamton | AD13: 0.68 | AE13: 52.3 | AF13: 0.86 | AG13: Coal | AH13: per ton | AI13: =HLOOKUP($D$24,$AH$16:$AJ$27,12) ->  | AJ13: (ton) | AK13: 200 | AL13: 20150 | AM13: prelim costs | AO13: Coal
C14: Pumping Control | E14: BEFLH_h | F14: ='TRM lookup tables'!A22 -> 1485 | G14: F_pump_h= | H14: =_xlfn.IFNA('TRM lookup tables'!X3,"") ->  | I14: =_xlfn.IFNA('TRM lookup tables'!AA3,"") ->  | J14: F_dist_h = | K14: =_xlfn.IFNA(VLOOKUP($C$23,$AG$17:$AL$28,6,),"") ->  | M14: City, State: | AB14: North Country | AC14: Massena | AD14: 0.59 | AE14: 49.5 | AF14: 0.86 | AG14: Base GSHP | AH14: =AH4 -> per kWh | AI14: =HLOOKUP($D$24,$AH$16:$AJ$28,13) ->  | AJ14: =AJ4 -> (kWh) | AK14: =AK4 ->  | AL14: =AL4 -> 3.412 | AM14: =AM4 ->  | AO14: Electric
C15: Pumping Power | I15: Seasonal AVG HEATING COP (TRM Calcs) | J15: =_xlfn.IFNA(IF($G$9='TRM lookup tables'!$P$12,E10*$AS$6*H14,0.25*E10*$AS$6*H14+0.75*E11*$AT$6*I14)*K14,1) -> 1 | K15: Avg COP | AB15: Capital District | AC15: Albany | AD15: 0.7 | AE15: 54.3 | AF15: 0.86 | AH15: Efficiency based on Equipment Life | AN15: DHW Fuel | AQ15: Cost
M16: Zip: | AB16: Lower Hudson | AC16: Poughkeepsie | AD16: 0.62 | AE16: 55.8 | AF16: 0.86 | AH16: Existing ≤10 yrs | AI16: Existing 11+ yrs | AJ16: TRM-Code Min | AL16: F_dist_h | AM16: F_dist_c | AP16: Unit | AQ16: per unit | AR16: MBtu/unit
C17: Building Cooling Load | I17: Cooling Load: | J17: =IF($G$28<>Y1,D18*F18/1000000,0) -> 0 | K17: MMBtu/yr | AB17: Upper Hudson | AC17: Albany | AD17: 0.7 | AE17: 54.3 | AF17: 0.86 | AG17: =AG3 -> Elect Resist | AH17: 1 | AI17: 1 | AJ17: 1 | AL17: 0.96 | AM17: always 0.95 | AN17: Electric | AO17: =AH3 -> per kWh | AP17: =AJ3 -> (kWh) | AQ17: =AK3 ->  | AR17: =AL3 -> 3.412
C18: BCL (Manual J) | E18: Btu/h BEFLH_c | F18: ='TRM lookup tables'!A24 -> 811 | G18: F_pump_c= | H18: =_xlfn.IFNA('TRM lookup tables'!W3,"") ->  | I18: =_xlfn.IFNA('TRM lookup tables'!Z3,"") ->  | M18: County: | AB18: Long Island | AC18: New York | AD18: 0.8 | AE18: 61.4 | AF18: 0.72 | AG18: Std ASHP | AH18: =AH31*$AD$20/3.413 -> 0 | AI18: =AI31*$AD$20/3.413 -> 0 | AJ18: =AJ31*$AD$20/3.413 -> 0 | AL18: 0.97 | AN18: Fuel Oil | AO18: =AH5 -> per gal | AP18: =AJ5 -> (gal) | AQ18: =AK5 ->  | AR18: =AL5 -> 139
I19: Seasonal AVG COOLING Efficiency (TRM Calcs): | J19: =_xlfn.IFNA(IF($G$9='TRM lookup tables'!$P$12,E12*$AU$6*H18,0.25*E12*$AU$6*H18+0.75*E13*$AU$6*I18)*0.95,1) -> 1 | K19: Btu/Wh | AB19: NoRegion | AC19: NoCity | AG19: Fuel Oil - Furnace | AH19: 0.82 | AI19: 0.79 | AJ19: 0.83 | AL19: 0.96 | AN19: Natural Gas | AO19: =AH7 -> per therm | AP19: =AJ7 -> (therms) | AR19: 100
G20: Electric Cost ($/kWh): | H20: =_xlfn.IFNA(IF(O24>0,IF(N20='Drop-Down Lists'!B10,O24,AK3),AK3),0) -> 0 | I20: per kWh | M20: Electric Utility: | AA20: CURRENT | AB20: =VLOOKUP($G$13,$AB$11:$AC$19,1,FALSE) -> NoRegion | AC20: =VLOOKUP($G$13,$AB$11:$AC$19,2,FALSE) -> NoCity | AD20: =VLOOKUP($G$13,$AB$11:$AD$19,3,FALSE) -> 0 | AE20: =VLOOKUP($G$13,$AB$11:$AE$19,4,FALSE) -> 0 | AF20: =VLOOKUP($G$13,$AB$11:$AF$19,5,FALSE) -> 0 | AG20: Fuel Oil - Boiler | AH20: 0.85 | AI20: 0.79 | AJ20: 0.84 | AL20: 0.96 | AN20: Propane | AO20: =AH8 -> per therm | AP20: (therms) | AR20: 100
D21: Building Vintage | F21: (sets BEFLH) | H21: =_xlfn.IFNA(IF(O24>0,IF(N20='Drop-Down Lists'!B10,"OVERRIDE for Muni/Coop",AM3),AM3),"") ->  | AG21: Natural Gas - Furnace | AH21: 0.9 | AI21: 0.78 | AJ21: 0.8 | AL21: 0.96 | AN21: NoFuel | AQ21: =AK9 ->  | AR21: 1
B22: Base Case System | C22: Base Case Fuel/System (choose one): | M22: Gas Utility: | AG22: Natural Gas - Boiler | AH22: 0.85 | AI22: 0.78 | AJ22: 0.82 | AL22: 0.96
G23: Fuel Cost: | H23: =_xlfn.IFNA(VLOOKUP(C23,AG3:AK14,5,),0) -> 0 | I23: =_xlfn.IFNA(VLOOKUP(C23,AG3:AH14,2,),"") ->  | AG23: Propane - Furnace | AH23: 0.9 | AI23: 0.78 | AJ23: 0.8 | AL23: 0.96
C24: Htg Equipment Age: | E24: (sets baseline equipment efficiency) | H24: =_xlfn.IFNA(VLOOKUP(C23,AG3:AM14,7,),"") ->  | M24: Electric Cost Override | P24: $/kWh (for Muni/Coop) | AG24: Propane - Boiler | AH24: 0.85 | AI24: 0.78 | AJ24: 0.82 | AL24: 0.96
C25: Base Case factors & Seasonal Efficiency | G25: =_xlfn.IFNA(VLOOKUP(C23,AG3:$AL$14,6,),1) -> 1 | H25: ="MBtu "&I23 -> MBtu | I25: =_xlfn.IFNA(VLOOKUP(C23,AG3:AI14,3,),1) -> 1 | J25: eff | M25: GSHP Installer/Contractor Information | AG25: Wood | AH25: 0.7 | AI25: 0.7 | AJ25: 0.7 | AL25: 0.96
C26: MEASURED Annual Fuel Use (for Space Heating ONLY) Override: | H26: =MID(I23,4,6)&" per yr" -> per yr | J26: =IF(G26,G26*G25/1000*I25,"") ->  | K26: =IF(G26,"MMBtu","") ->  | AG26: Wood Pellets | AH26: 0.77 | AI26: 0.77 | AJ26: 0.77 | AL26: 0.96
G27: Base Case AC: | M27: Name: | AG27: Coal | AH27: 0.78 | AI27: 0.78 | AJ27: 0.78 | AL27: 0.96
C28: Base Case Cooling Efficiency (avg EER) | H28: Avg EER: | I28: =_xlfn.IFNA(HLOOKUP(G28,$X$1:$Y$11,3,FALSE),1) -> 1 | J28: Btu/Wh | AG28: Base GSHP | AH28: =AH33*$H$14*$K$14*$AS$6 ->  | AI28: =AI33*$H$14*$K$14*$AS$6 ->  | AJ28: =AJ33*$H$14*$K$14*$AS$6 ->  | AL28: 0.97
M29: Address:
D30: Space Heating Elect (kWh/yr) | E30: Cooling Elect (kWh/yr) | F30: =_xlfn.IFNA("Displaced Annual Space Htg Fuel "&VLOOKUP(C23,AG3:AJ14,4,),"") ->  | G30: Annual Space Heating Cost | H30: Annual Cooling Cost | I30: Annual DHW Cost | J30: Total Annual Cost | K30: Fuel Energy Content (MMBtu/yr)
C31: Base Case | E31: =(J17*1000/I28) -> 0 | F31: =J12*1000/I25/G25 -> 0 | G31: =D31*$H$20+F31*$H$23 -> 0 | H31: =E31*$H$20 -> 0 | I31: =IF(ISERROR(P45*O43+P47*O43),0,P45*O43+P47*O43) -> 0 | J31: =G31+H31+I31 -> 0 | K31: =F31*G25/1000 -> 0 | M31: City, State, Zip: | AG31: Std HSPF for GSHP | AH31: 7.7 | AI31: 6.8 | AJ31: 7.7
C32: GSHP System | D32: =(J12*1000/3.412/J15) -> 0 | E32: =(J17*1000/J19) -> 0 | G32: =D32*$H$20+F32*$H$23 -> 0 | H32: =E32*$H$20 -> 0 | I32: =IF(ISERROR(Q38*H20+P47*O43),0,Q38*H20+P47*O43) -> 0 | J32: =G32+H32+I32 -> 0 | V32: Fraction of Load
C33: Savings | D33: =D31-D32 -> 0 | E33: =E31-E32 -> 0 | F33: =F31-F32 -> 0 | G33: =G31-G32 -> 0 | H33: =H31-H32 -> 0 | I33: 0 | J33: 0 | T33: None | V33: 0 | Z33: UEF Table | AA33: Electric | AB33: gas | AC33: current | AG33: Base GSHP @ ISO | AH33: 3 | AI33: 2.5 | AJ33: =IF(G8=AQ3,3.2,3.7) -> 3.7 | AK33: IECC2015 code-minimum
J34: =IF(AND(G9="Dual Capacity",D14="Variable Flow"),"GSHP UNIT TYPE = 'Dual Capacity' AND PUMPING CONTROL = 'Variable Flow' is NOT VALID Combination - Please Change","") ->  | M34: Calculator for Domestic Hot Water Option | T34: Desuperheater | V34: =$V$47+N36*$V$46 -> 0.515 | Z34: Small (<4 peop) | AA34: =AC42 -> 0.9227 | AB34: =AG42 -> 0.5803 | AC34: =IF($N$42=$AN$17,AA34,AB34) -> 0.5803 | AG34: Assumption for basecase GSHP (fixed capacity)
C35: MMBtu Calcs | D35: Space Heat | E35: Cooling | F35: Space Heat | H35: DHW | I35: DHW | M35: No of People | P35: T_main | Q35: =AE20 -> 0 | T35: dedicated WWHP, small tank, resist elements | V35: 0.95 | Z35: Large (4+ peop) | AA35: =AA34 -> 0.9227 | AB35: =AG47 -> 0.7832 | AC35: =IF($N$42=$AN$17,AA35,AB35) -> 0.7832
C36: Base Case | E36: =E31*3.412/1000 -> 0 | F36: =F31*G25/1000 -> 0 | I36: =P45*O44/1000 -> 0 | M36: Gal/day: | N36: =17.2*N35 -> 0 | P36: F_dhw | Q36: =_xlfn.IFNA(VLOOKUP(N39,T34:V36,3,),0) -> 0 | T36: dedicated WWHP, 80+ gal tank, w/o elements | V36: 1
C37: GSHP System | D37: =D32*3.412/1000 -> 0 | E37: =E32*3.412/1000 -> 0 | H37: =Q38*3.412/1000 -> 0 | M37: QGSHP,DHW = | N37: =_xlfn.IFNA(IF(N39=T33,0,(130-Q35)*8.33*365*N36*Q36/1000000),0) -> 0 | O37: MMBtu | P37: F_hmode = | Q37: =AF20 -> 0
D38: Electric | E38: Electric | F38: =_xlfn.IFNA(VLOOKUP(C23,AG3:AO14,9,),"") ->  | H38: Electric | I38: =N42 -> NoFuel | M38: COPGSHP,DHW = | N38: =IF(N39=T34,J15/Q37,IF(N40=0,Q42,N40*0.9)) -> 0.5803 | P38: kWhGSHP,DHW = | Q38: =IF(N38=0,0,N37*1000/3.412/N38) -> 0 | AA38: Electric Storage Tanks | AE38: Gas Storge Tanks
C39: E&G Prices: | D39: ='Fuel 1 - Savings Calculator'!H12 -> 2021-2023 SC1 Avg | F39: Deliv Fuel Prices: | G39: ='Fuel 1 - Savings Calculator'!H77 -> 2022-2023 Avg | K39: V. 02.08.2024 | M39: DHW Type | Y39: draw pattern | Z39: gal | AA39: offset | AB39: slope | AC39: UEF | AE39: offset | AF39: slope | AG39: UEF
C40: Electric | D40: =SUMIF($D$38:$I$38,C40,$D$36:$I$36)-SUMIF($D$38:$I$38,C40,$D$37:$I$37) -> 0 | M40: Rated WWHP COP | O40: at AHRI/ISO 132156-2 heating conditions | U40: GPD | V40: fraction | W40: linear nodel | X40: 20 to 55 gal | Y40: very small | Z40: 40 | AA40: 0.8808 | AB40: 0.0008 | AC40: =AA40-Z40*AB40 -> 0.8488 | AE40: 0.3456 | AF40: 0.002 | AG40: =AE40-Z40*AF40 -> 0.2656
C41: Natural Gas | D41: =SUMIF($D$38:$I$38,C41,$D$36:$I$36)-SUMIF($D$38:$I$38,C41,$D$37:$I$37) -> 0 | O41: (32F source, 105F load) | U41: 35 | V41: 0.36 | W41: =$V$47+U41*$V$46 -> 0.354 | Y41: Low | Z41: 40 | AA41: 0.9254 | AB41: 0.0003 | AC41: 0.9134 | AE41: 0.5982 | AF41: 0.0019 | AG41: =AE41-Z41*AF41 -> 0.5222
C42: Propane | D42: 0 | M42: DHW Base Fuel | N42: NoFuel | P42: Baseline UEF | Q42: =IF(N35>3,AC35,AC34) -> 0.5803 | U42: 45 | V42: 0.3 | W42: =$V$47+U42*$V$46 -> 0.308 | Y42: Medium | Z42: 40 | AA42: 0.9307 | AB42: 0.0002 | AC42: 0.9227 | AE42: 0.6483 | AF42: 0.0017 | AG42: 0.5803
C43: Fuel Oil | D43: 0 | O43: =VLOOKUP(N42,$AN$17:$AR$21,4) ->  | P43: =VLOOKUP(N42,$AN$17:$AR$21,2) -> per therm | U43: 55 | V43: 0.26 | W43: 0.262 | Y43: High | Z43: 40 | AA43: 0.9349 | AB43: 0.0001 | AC43: 0.9309 | AE43: 0.692 | AF43: 0.0013 | AG43: 0.64
C44: Wood | D44: 0 | O44: =VLOOKUP(N42,$AN$17:$AR$21,5) -> 100 | P44: ="MBtu "&P43 -> MBtu per therm | U44: 65 | V44: 0.22 | W44: 0.216 | X44: 55 to 100 gal | Y44: very small | Z44: 80 | AA44: 1.9236 | AB44: 0.0011 | AC44: 1.8356 | AE44: 0.647 | AF44: 0.0006 | AG44: 0.599
C45: Coal | D45: 0 | O45: Dispplaced Fuel= | P45: =N37*1000/O44/Q42 -> 0 | Q45: =VLOOKUP(N42,AN17:AR21,3,) -> 0 | Y45: Low | Z45: 80 | AA45: 2.044 | AB45: 0.0011 | AC45: 1.956 | AE45: 0.7689 | AF45: 0.0005 | AG45: 0.7289
C46: NET | D46: =SUM(D40:D45) -> 0 | O46: QDHW= | P46: =IF(N39=T33,0,(130-Q35)*8.33*365*N36/1000000) -> 0 | Q46: MMBtu | U46: slope | V46: =SLOPE(V41:V44,U41:U44) -> -0.0046 | Y46: Medium | Z46: 80 | AA46: 2.1171 | AB46: 0.0011 | AC46: 2.0291 | AE46: 0.7897 | AF46: 0.0004 | AG46: 0.7577
O47: Non-displaced fuel= | P47: =(P46-N37)*1000/O44/Q42 -> 0 | Q47: =Q45 -> 0 | U47: offset | V47: =INTERCEPT(V41:V44,U41:U44) -> 0.515 | Y47: High | Z47: 80 | AA47: 2.2418 | AB47: 0.0011 | AC47: 2.1538 | AD47: HPWH | AE47: 0.8072 | AF47: 0.0003 | AG47: 0.7832
X48: very small | Y48: 80 | AA48: 0.0011 | AB48: =Z48-Y48*AA48 -> -0.088
X49: Low | Y49: 80 | AA49: 0.0011 | AB49: -0.088
X50: Medium | Y50: 80 | AA50: 0.0011 | AB50: -0.088
X51: High | Y51: 80 | AA51: 0.0011 | AB51: -0.088
X52: very small | Y52: 80 | AA52: 0.0011 | AB52: -0.088
X53: Low | Y53: 80 | AA53: 0.0011 | AB53: -0.088
X54: Medium | Y54: 80 | AA54: 0.0011 | AB54: -0.088
X55: High | Y55: 80 | AA55: 0.0011 | AB55: -0.088
X56: very small | Y56: 80 | AA56: 0.0011 | AB56: -0.088
X57: Low | Y57: 80 | AA57: 0.0011 | AB57: -0.088
X58: Medium | Y58: 80 | AA58: 0.0011 | AB58: -0.088
X59: High | Y59: 80 | AA59: 0.0011 | AB59: -0.088
X60: very small | Y60: 80 | AA60: 0.0011 | AB60: -0.088
X61: Low | Y61: 80 | AA61: 0.0011 | AB61: -0.088
X62: Medium | Y62: 80 | AA62: 0.0011 | AB62: -0.088

Sheet Web ProForma Inputs
A1: Web ProForma Inputs
A3: Total Project Cost | B3: ='GSHP Calculator'!$K$10 -> 0
A4: Installed Capacity
A5: MWh Generation
A6: MWH Savings | B6: ='GSHP Calculator'!$D$40/3.412 -> 0
A7: Natural Gas MMBTU Savings | B7: ='GSHP Calculator'!$D$41 -> 0
A8: Propane MMBTU Savings | B8: ='GSHP Calculator'!$D$42 -> 0
A9: #2/Distillate Oil MMBTU Savings | B9: ='GSHP Calculator'!$D$43 -> 0
A10: #6/ Residual Oil MMBTU Savings
A11: Gasoline MMBTU Savings
A12: Wood MMBTU Savings | B12: ='GSHP Calculator'!$D$44 -> 0
A13: Steam MMBTU Savings
A14: Kerosene MMBTU Savings
A15: Coal MMBTU Savings | B15: ='GSHP Calculator'!$D$45 -> 0
A16: Other MMBTU Savings
A17: Total MMBTU Savings | B17: =SUM(B7:B16) -> 0
A18: Fuel Switch: (Y/N) | B18: =IF('GSHP Calculator'!C23="","",IF(AND('GSHP Calculator'!C23<>"Elect Res",'GSHP Calculator'!C23<>"Std ASHP",'GSHP Calculator'!C23<>"Base GSHP"),"Yes","No")) -> 
A19: $ Savings | B19: =IF(ISERROR('GSHP Calculator'!J33),"",'GSHP Calculator'!J33) -> 0

Sheet TRM lookup tables (hidden)
A1: INPUTS | J1: 45 W/ton | L1: 60 W/ton | N1: 75 W/ton | P1: 90 W/ton | R1: 105 W/ton | T1: 120 W/ton | Z1: Partload
A2: Location | B2: =VLOOKUP('GSHP Calculator'!$G$13,'GSHP Calculator'!$AB$11:$AC$19,2,) -> NoCity | D2: =VLOOKUP(B2,$C$8:$D$14,2,TRUE) -> 5 | J2: Cooling | K2: Heating | L2: Cooling | M2: Heating | N2: Cooling | O2: Heating | P2: Cooling | Q2: Heating | R2: Cooling | S2: Heating | T2: Cooling | U2: Heating | W2: Cooling | X2: Heating | Z2: Cooling | AA2: Heating
A3: Vintage | B3: =_xlfn.IFNA("Avg",'GSHP Calculator'!E21) -> Avg | D3: =VLOOKUP(B3,$C$16:$D$18,2,) -> 2 | H3: Full Load | J3: 0.94 | K3: 0.94 | L3: 0.93 | M3: 0.92 | N3: 0.91 | O3: 0.9 | P3: 0.89 | Q3: 0.89 | R3: 0.88 | S3: 0.87 | T3: 0.86 | U3: 0.86 | V3: Full | W3: =OFFSET($H3,0,$J$17) ->  | X3: =OFFSET($H3,0,$J$17+1) ->  | Y3: Part | Z3: =OFFSET($W$4,$N$17+$R$17,0) ->  | AA3: =OFFSET($X$4,$N$17+$R$17,0) -> 
H4: Part Load - Constant Flow Pumping (2 Stg HP) | I4: 0.75 | J4: 0.89 | K4: 0.91 | L4: 0.86 | M4: 0.89 | N4: 0.83 | O4: 0.86 | P4: 0.8 | Q4: 0.84 | R4: 0.78 | S4: 0.82 | T4: 0.75 | U4: 0.8 | W4: =OFFSET($H4,0,$J$17) ->  | X4: =OFFSET($H4,0,$J$17+1) -> 
A5: C-H ratio | B5: =VLOOKUP($B$2,$C$8:$E$14,3,) ->  | H5: Part Load - Constant Flow Pumping (Var HP) | I5: 0.4 | J5: 0.81 | K5: 0.85 | L5: 0.77 | M5: 0.81 | N5: 0.72 | O5: 0.77 | P5: 0.69 | Q5: 0.74 | R5: 0.65 | S5: 0.71 | T5: 0.62 | U5: 0.68 | W5: =OFFSET($H5,0,$J$17) ->  | X5: =OFFSET($H5,0,$J$17+1) -> 
H6: Part Load - Staged pumping (2 Stg HP) | I6: 0.75 | J6: 0.92 | K6: 0.94 | L6: 0.89 | M6: 0.91 | N6: 0.87 | O6: 0.89 | P6: 0.84 | Q6: 0.87 | R6: 0.82 | S6: 0.86 | T6: 0.8 | U6: 0.84 | W6: =OFFSET($H6,0,$J$17) ->  | X6: =OFFSET($H6,0,$J$17+1) -> 
D7: Index | E7: C-H ratio | H7: Part Load - Staged pumping (Var HP) | I7: 0.4 | J7: 0.92 | K7: 0.94 | L7: 0.89 | M7: 0.91 | N7: 0.87 | O7: 0.89 | P7: 0.84 | Q7: 0.87 | R7: 0.82 | S7: 0.86 | T7: 0.8 | U7: 0.84 | W7: =OFFSET($H7,0,$J$17) ->  | X7: =OFFSET($H7,0,$J$17+1) -> 
C8: Albany | D8: 1 | E8: 0.5 | W8: invalid | X8: invalid
C9: Binghamton | D9: 2 | E9: 0.5 | H9: Part Load - Var Pumping (Var HP) | I9: 0.4 | J9: 0.94 | K9: 0.95 | L9: 0.92 | M9: 0.93 | N9: 0.9 | O9: 0.92 | P9: 0.88 | Q9: 0.9 | R9: 0.86 | S9: 0.89 | T9: 0.84 | U9: 0.87 | W9: =OFFSET($H9,0,$J$17) ->  | X9: =OFFSET($H9,0,$J$17+1) -> 
C10: Buffalo | D10: 3 | E10: 0.5
C11: Massena | D11: 4 | E11: 0.35 | I11: =J1 -> 45 W/ton | J11: 2
C12: New York | D12: 5 | E12: 0.75 | I12: =L1 -> 60 W/ton | J12: 4 | L12: Constant Flow | N12: 0 | P12: Fixed Capacity
C13: Poughkeepsie | D13: 6 | E13: 0.6 | I13: =N1 -> 75 W/ton | J13: 6 | L13: Staged Flow | N13: 2 | P13: Dual Capacity | R13: 0
C14: Syracuse | D14: 7 | E14: 0.5 | I14: =P1 -> 90 W/ton | J14: 8 | L14: Variable Flow | N14: 4 | P14: Variable Capacity | R14: 1
D15: Index | I15: =R1 -> 105 W/ton | J15: 10
C16: Old | D16: 1 | I16: =T1 -> 120 W/ton | J16: 12
C17: Avg | D17: 2 | H17: current | I17: =VLOOKUP('GSHP Calculator'!D15,'TRM lookup tables'!$I$11:$J$16,1,) ->  | J17: =VLOOKUP('GSHP Calculator'!D15,'TRM lookup tables'!$I$11:$J$16,2,) ->  | L17: =VLOOKUP('GSHP Calculator'!D14,'TRM lookup tables'!$L$12:$N$14,1) ->  | N17: =VLOOKUP('GSHP Calculator'!D14,'TRM lookup tables'!$L$12:$N$14,3) ->  | P17: =VLOOKUP('GSHP Calculator'!$G$9,'TRM lookup tables'!$P$12:$R$14,1) ->  | R17: =VLOOKUP('GSHP Calculator'!$G$9,'TRM lookup tables'!$P$12:$R$14,3) -> 
C18: New | D18: 3
A21: =B2 -> NoCity | E21: Old | F21: Avg | G21: New | I21: =OFFSET(D21,0,$D$3) -> Avg | M21: Old | N21: Avg | O21: New | Q21: =OFFSET(L21,0,$D$3) -> Avg
A22: =OFFSET(I21,D2,0) -> 1485 | D22: Albany | E22: 1878 | F22: 1763 | G22: 1643 | H22: Albany | I22: 1763 | L22: Albany | M22: 403 | N22: 388 | O22: 349 | P22: Albany | Q22: 388
D23: Binghamton | E23: 2060 | F23: 1935 | G23: 1804 | H23: Binghamton | I23: 1935 | L23: Binghamton | M23: 249 | N23: 246 | O23: 198 | P23: Binghamton | Q23: 246
A24: =OFFSET(Q21,D2,0) -> 811 | D24: Buffalo | E24: 2080 | F24: 1952 | G24: 1819 | H24: Buffalo | I24: 1952 | L24: Buffalo | M24: 418 | N24: 403 | O24: 345 | P24: Buffalo | Q24: 403
D25: Massena | E25: 1986 | F25: 1880 | G25: 1772 | H25: Massena | I25: 1880 | L25: Massena | M25: 323 | N25: 313 | O25: 263 | P25: Massena | Q25: 313
D26: New York (LGA) | E26: 1636 | F26: 1485 | G26: 1329 | H26: New York | I26: 1485 | L26: New York (LGA) | M26: 838 | N26: 811 | O26: 788 | P26: New York | Q26: 811
D27: Poughkeepsie | E27: 2044 | F27: 1912 | G27: 1776 | H27: Poughkeepsie | I27: 1912 | L27: Poughkeepsie | M27: 620 | N27: 588 | O27: 580 | P27: Poughkeepsie | Q27: 588
D28: Syracuse | E28: 1960 | F28: 1842 | G28: 1720 | H28: Syracuse | I28: 1842 | L28: Syracuse | M28: 388 | N28: 370 | O28: 335 | P28: Syracuse | Q28: 370

Sheet Fuel 1 - Savings Calculator (hidden)
A1: Inputs | E1: Project Fuel Costs
A2: Zip | B2: ='GSHP Calculator'!N16 -> 0 | E2: Price | H2: Final | K2: Unique ID for Zip/County Combo | L2: ZIP Code | M2: ZIP Code | N2: NYISO Zone | O2: Utility | P2: County | Q2: Electric REDC Name - Region | R2: Heating Oil Region-County Mapping | S2: KEROSENSE REGION_COUNTY MAPPING | T2: PROPANE REGION_COUNTY MAPPING | U2: Consolidated Edison Region | V2: NYISO Zone | W2: Mmbtu/kBtu - Added KWh/kbtu/h | X2: Pellets | Y2: Weather City | AA2: Region | AB2: County | AC2: ZIP Code | AD2: Electric Utility | AE2: Gas Utility | AF2: ASHP Electric Utility | AG2: ASHP Gas Utility | AH2: Electricity Rate | AI2: Natural Gas Rates | AJ2: Fuel Oil Rates | AK2: Kerosene Rates | AL2: Propane Rates
A3: County | B3: ='GSHP Calculator'!N18 -> 0 | E3: Oil | F3: =IF(ISERROR($H$90),"",OFFSET(F90,-2,0)) ->  | H3: =IF(ISERROR($H$90),"",H90) ->  | J3: =L3*1 -> 12009 | K3: 12009Albany | L3: 12009 | M3: 12009 | N3: Zone F - Capital | O3: National Grid | P3: Albany | Q3: Capital Region | R3: Capital District | S3: Capital District | T3: Capital District | V3: Zone F - Capital | W3: Capital District | X3: Capital District | Y3: Albany | AA3: =VLOOKUP(AC3,J:R,9,) -> Long Island | AB3: Suffolk | AC3: 501 | AD3: PSEG Long Island | AH3: 0.1833 | AJ3: 2.788741333 | AK3: 3.06 | AL3: 2.95810878
A4: Fuel | B4: =VLOOKUP('GSHP Calculator'!C23,'GSHP Calculator'!$AG$3:$AO$12,9,) ->  | E4: Natural Gas | H4: =IF(ISERROR(VLOOKUP($B$6,$E$65:$H$92,4,)),"",VLOOKUP($B$6,$E$65:$H$92,4,)) ->  | J4: =L4*1 -> 12023 | K4: 12023Albany | L4: 12023 | M4: 12023 | N4: Zone F - Capital | O4: National Grid | P4: Albany | Q4: Capital Region | R4: Capital District | S4: Capital District | T4: Capital District | V4: Zone F - Capital | W4: Capital District | X4: Capital District | Y4: Albany | AA4: =VLOOKUP(AC4,J:R,9,) -> Long Island | AB4: Suffolk | AC4: 544 | AD4: PSEG Long Island | AH4: 0.1833 | AJ4: 2.788741333 | AK4: 3.06 | AL4: 2.95810878
A5: Electric Utility | B5: ='GSHP Calculator'!N20 -> 0 | E5: Propane | F5: =IF(ISERROR($H$116),"",OFFSET(F116,-2,0)) ->  | H5: =IF(ISERROR($H$116),"",H116) ->  | J5: 12041 | K5: 12041Albany | L5: 12041 | M5: 12041 | N5: Zone F - Capital | O5: National Grid | P5: Albany | Q5: Capital Region | R5: Capital District | S5: Capital District | T5: Capital District | V5: Zone F - Capital | W5: Capital District | X5: Capital District | Y5: Albany | AA5: Long Island | AB5: Suffolk | AC5: 6390 | AD5: PSEG Long Island | AH5: 0.1833 | AJ5: 2.788741333 | AK5: 3.06 | AL5: 2.95810878
A6: Natural Gas Utility | B6: ='GSHP Calculator'!N22 -> 0 | E6: Kerosene | F6: =IF(ISERROR(F$101),"",F$101) ->  | H6: =IF(ISERROR(H$101),"",H$101) ->  | J6: 12047 | K6: 12047Albany | L6: 12047 | M6: 12047 | N6: Zone F - Capital | O6: National Grid | P6: Albany | Q6: Capital Region | R6: Capital District | S6: Capital District | T6: Capital District | V6: Zone F - Capital | W6: Capital District | X6: Capital District | Y6: Albany | AA6: NYC | AB6: New York | AC6: 10001 | AD6: Consolidated Edison | AE6: Consolidated Edison | AF6: Consolidated Edison | AG6: Consolidated Edison | AH6: 0.2211 | AI6: 1.038 | AJ6: 2.754668333 | AK6: 3.06 | AL6: 2.885440817
A7: Price per Unit of Energy | B7: =IF(ISERROR(VLOOKUP(B4,E3:H10,4,)),"",VLOOKUP(B4,E3:H10,4,)) ->  | E7: Electric | F7: =F22 ->  | H7: =H22 ->  | J7: 12054 | K7: 12054Albany | L7: 12054 | M7: 12054 | N7: Zone F - Capital | O7: National Grid | P7: Albany | Q7: Capital Region | R7: Capital District | S7: Capital District | T7: Capital District | V7: Zone F - Capital | W7: Capital District | X7: Capital District | Y7: Albany | AA7: NYC | AB7: New York | AC7: 10002 | AD7: Consolidated Edison | AE7: Consolidated Edison | AF7: Consolidated Edison | AG7: Consolidated Edison | AH7: 0.2211 | AI7: 1.038 | AJ7: 2.754668333 | AK7: 3.06 | AL7: 2.885440817
E8: Cord Wood | F8: 225 | H8: 225 | J8: 12059 | K8: 12059Albany | L8: 12059 | M8: 12059 | N8: Zone F - Capital | O8: National Grid | P8: Albany | Q8: Capital Region | R8: Capital District | S8: Capital District | T8: Capital District | V8: Zone F - Capital | W8: Capital District | X8: Capital District | Y8: Albany | AA8: NYC | AB8: New York | AC8: 10003 | AD8: Consolidated Edison | AE8: Consolidated Edison | AF8: Consolidated Edison | AG8: Consolidated Edison | AH8: 0.2211 | AI8: 1.038 | AJ8: 2.754668333 | AK8: 3.06 | AL8: 2.885440817
E9: Wood Pellets | F9: =F127 ->  | H9: =H129 ->  | J9: 12067 | K9: 12067Albany | L9: 12067 | M9: 12067 | N9: Zone F - Capital | O9: National Grid | P9: Albany | Q9: Capital Region | R9: Capital District | S9: Capital District | T9: Capital District | V9: Zone F - Capital | W9: Capital District | X9: Capital District | Y9: Albany | AA9: NYC | AB9: New York | AC9: 10004 | AD9: Consolidated Edison | AE9: Consolidated Edison | AF9: Consolidated Edison | AG9: Consolidated Edison | AH9: 0.2211 | AI9: 1.038 | AJ9: 2.754668333 | AK9: 3.06 | AL9: 2.885440817
J10: 12077 | K10: 12077Albany | L10: 12077 | M10: 12077 | N10: Zone F - Capital | O10: National Grid | P10: Albany | Q10: Capital Region | R10: Capital District | S10: Capital District | T10: Capital District | V10: Zone F - Capital | W10: Capital District | X10: Capital District | Y10: Albany | AA10: NYC | AB10: New York | AC10: 10005 | AD10: Consolidated Edison | AE10: Consolidated Edison | AF10: Consolidated Edison | AG10: Consolidated Edison | AH10: 0.2211 | AI10: 1.038 | AJ10: 2.754668333 | AK10: 3.06 | AL10: 2.885440817
J11: 12084 | K11: 12084Albany | L11: 12084 | M11: 12084 | N11: Zone F - Capital | O11: National Grid | P11: Albany | Q11: Capital Region | R11: Capital District | S11: Capital District | T11: Capital District | V11: Zone F - Capital | W11: Capital District | X11: Capital District | Y11: Albany | AA11: NYC | AB11: New York | AC11: 10006 | AD11: Consolidated Edison | AE11: Consolidated Edison | AF11: Consolidated Edison | AG11: Consolidated Edison | AH11: 0.2211 | AI11: 1.038 | AJ11: 2.754668333 | AK11: 3.06 | AL11: 2.885440817
E12: Residential Electric Rates | H12: 2021-2023 SC1 Avg | J12: 12085 | K12: 12085Albany | L12: 12085 | M12: 12085 | N12: Zone F - Capital | O12: National Grid | P12: Albany | Q12: Capital Region | R12: Capital District | S12: Capital District | T12: Capital District | V12: Zone F - Capital | W12: Capital District | X12: Capital District | Y12: Albany | AA12: NYC | AB12: New York | AC12: 10007 | AD12: Consolidated Edison | AE12: Consolidated Edison | AF12: Consolidated Edison | AG12: Consolidated Edison | AH12: 0.2211 | AI12: 1.038 | AJ12: 2.754668333 | AK12: 3.06 | AL12: 2.885440817
E13: Electric Utility Company | H13: $ / kWh | J13: 12107 | K13: 12107Albany | L13: 12107 | M13: 12107 | N13: Zone F - Capital | O13: National Grid | P13: Albany | Q13: Capital Region | R13: Capital District | S13: Capital District | T13: Capital District | V13: Zone F - Capital | W13: Capital District | X13: Capital District | Y13: Albany | AA13: NYC | AB13: New York | AC13: 10008 | AD13: Consolidated Edison | AE13: Consolidated Edison | AF13: Consolidated Edison | AG13: Consolidated Edison | AH13: 0.2211 | AI13: 1.038 | AJ13: 2.754668333 | AK13: 3.06 | AL13: 2.885440817
E14: Central Hudson Gas and Electric | H14: 0.2323 | J14: 12110 | K14: 12110Albany | L14: 12110 | M14: 12110 | N14: Zone F - Capital | O14: National Grid | P14: Albany | Q14: Capital Region | R14: Capital District | S14: Capital District | T14: Capital District | V14: Zone F - Capital | W14: Capital District | X14: Capital District | Y14: Albany | AA14: NYC | AB14: New York | AC14: 10009 | AD14: Consolidated Edison | AE14: Consolidated Edison | AF14: Consolidated Edison | AG14: Consolidated Edison | AH14: 0.2211 | AI14: 1.038 | AJ14: 2.754668333 | AK14: 3.06 | AL14: 2.885440817
E15: Consolidated Edison | F15: =F61 ->  | H15: =H61 ->  | J15: 12128 | K15: 12128Albany | L15: 12128 | M15: 12128 | N15: Zone F - Capital | O15: National Grid | P15: Albany | Q15: Capital Region | R15: Capital District | S15: Capital District | T15: Capital District | V15: Zone F - Capital | W15: Capital District | X15: Capital District | Y15: Albany | AA15: NYC | AB15: New York | AC15: 10010 | AD15: Consolidated Edison | AE15: Consolidated Edison | AF15: Consolidated Edison | AG15: Consolidated Edison | AH15: 0.2211 | AI15: 1.038 | AJ15: 2.754668333 | AK15: 3.06 | AL15: 2.885440817
E16: National Grid | F16: =F35 ->  | H16: =H35 ->  | J16: 12158 | K16: 12158Albany | L16: 12158 | M16: 12158 | N16: Zone F - Capital | O16: National Grid | P16: Albany | Q16: Capital Region | R16: Capital District | S16: Capital District | T16: Capital District | V16: Zone F - Capital | W16: Capital District | X16: Capital District | Y16: Albany | AA16: NYC | AB16: New York | AC16: 10011 | AD16: Consolidated Edison | AE16: Consolidated Edison | AF16: Consolidated Edison | AG16: Consolidated Edison | AH16: 0.2211 | AI16: 1.038 | AJ16: 2.754668333 | AK16: 3.06 | AL16: 2.885440817
E17: New York State Electric and Gas | F17: =F50 ->  | H17: =H52 ->  | J17: 12159 | K17: 12159Albany | L17: 12159 | M17: 12159 | N17: Zone F - Capital | O17: National Grid | P17: Albany | Q17: Capital Region | R17: Capital District | S17: Capital District | T17: Capital District | V17: Zone F - Capital | W17: Capital District | X17: Capital District | Y17: Albany | AA17: NYC | AB17: New York | AC17: 10012 | AD17: Consolidated Edison | AE17: Consolidated Edison | AF17: Consolidated Edison | AG17: Consolidated Edison | AH17: 0.2211 | AI17: 1.038 | AJ17: 2.754668333 | AK17: 3.06 | AL17: 2.885440817
E18: Orange and Rockland | H18: 0.2245 | J18: 12161 | K18: 12161Albany | L18: 12161 | M18: 12161 | N18: Zone F - Capital | O18: National Grid | P18: Albany | Q18: Capital Region | R18: Capital District | S18: Capital District | T18: Capital District | V18: Zone F - Capital | W18: Capital District | X18: Capital District | Y18: Albany | AA18: NYC | AB18: New York | AC18: 10013 | AD18: Consolidated Edison | AE18: Consolidated Edison | AF18: Consolidated Edison | AG18: Consolidated Edison | AH18: 0.2211 | AI18: 1.038 | AJ18: 2.754668333 | AK18: 3.06 | AL18: 2.885440817
E19: Rochester Gas and Electric | H19: 0.1572 | J19: 12186 | K19: 12186Albany | L19: 12186 | M19: 12186 | N19: Zone F - Capital | O19: National Grid | P19: Albany | Q19: Capital Region | R19: Capital District | S19: Capital District | T19: Capital District | V19: Zone F - Capital | W19: Capital District | X19: Capital District | Y19: Albany | AA19: NYC | AB19: New York | AC19: 10014 | AD19: Consolidated Edison | AE19: Consolidated Edison | AF19: Consolidated Edison | AG19: Consolidated Edison | AH19: 0.2211 | AI19: 1.038 | AJ19: 2.754668333 | AK19: 3.06 | AL19: 2.885440817
E20: PSEG Long Island | H20: 0.22385 | J20: 12189 | K20: 12189Albany | L20: 12189 | M20: 12189 | N20: Zone F - Capital | O20: National Grid | P20: Albany | Q20: Capital Region | R20: Capital District | S20: Capital District | T20: Capital District | V20: Zone F - Capital | W20: Capital District | X20: Capital District | Y20: Albany | AA20: NYC | AB20: New York | AC20: 10016 | AD20: Consolidated Edison | AE20: Consolidated Edison | AF20: Consolidated Edison | AG20: Consolidated Edison | AH20: 0.2211 | AI20: 1.038 | AJ20: 2.754668333 | AK20: 3.06 | AL20: 2.885440817
E21: Other | J21: 12201 | K21: 12201Albany | L21: 12201 | M21: 12201 | N21: Zone F - Capital | O21: National Grid | P21: Albany | Q21: Capital Region | R21: Capital District | S21: Capital District | T21: Capital District | V21: Zone F - Capital | W21: Capital District | X21: Capital District | Y21: Albany | AA21: NYC | AB21: New York | AC21: 10017 | AD21: Consolidated Edison | AE21: Consolidated Edison | AF21: Consolidated Edison | AG21: Consolidated Edison | AH21: 0.2211 | AI21: 1.038 | AJ21: 2.754668333 | AK21: 3.06 | AL21: 2.885440817
F22: =VLOOKUP(B5,$E$14:$F$21,2,) ->  | H22: =VLOOKUP(B5,$E$14:$H$21,4,) ->  | J22: 12202 | K22: 12202Albany | L22: 12202 | M22: 12202 | N22: Zone F - Capital | O22: National Grid | P22: Albany | Q22: Capital Region | R22: Capital District | S22: Capital District | T22: Capital District | V22: Zone F - Capital | W22: Capital District | X22: Capital District | Y22: Albany | AA22: NYC | AB22: New York | AC22: 10018 | AD22: Consolidated Edison | AE22: Consolidated Edison | AF22: Consolidated Edison | AG22: Consolidated Edison | AH22: 0.2211 | AI22: 1.038 | AJ22: 2.754668333 | AK22: 3.06 | AL22: 2.885440817
J23: 12203 | K23: 12203Albany | L23: 12203 | M23: 12203 | N23: Zone F - Capital | O23: National Grid | P23: Albany | Q23: Capital Region | R23: Capital District | S23: Capital District | T23: Capital District | V23: Zone F - Capital | W23: Capital District | X23: Capital District | Y23: Albany | AA23: NYC | AB23: New York | AC23: 10019 | AD23: Consolidated Edison | AE23: Consolidated Edison | AF23: Consolidated Edison | AG23: Consolidated Edison | AH23: 0.2211 | AI23: 1.038 | AJ23: 2.754668333 | AK23: 3.06 | AL23: 2.885440817
J24: 12204 | K24: 12204Albany | L24: 12204 | M24: 12204 | N24: Zone F - Capital | O24: National Grid | P24: Albany | Q24: Capital Region | R24: Capital District | S24: Capital District | T24: Capital District | V24: Zone F - Capital | W24: Capital District | X24: Capital District | Y24: Albany | AA24: NYC | AB24: New York | AC24: 10020 | AD24: Consolidated Edison | AE24: Consolidated Edison | AF24: Consolidated Edison | AG24: Consolidated Edison | AH24: 0.2211 | AI24: 1.038 | AJ24: 2.754668333 | AK24: 3.06 | AL24: 2.885440817
E25: National Grid | J25: 12205 | K25: 12205Albany | L25: 12205 | M25: 12205 | N25: Zone F - Capital | O25: National Grid | P25: Albany | Q25: Capital Region | R25: Capital District | S25: Capital District | T25: Capital District | V25: Zone F - Capital | W25: Capital District | X25: Capital District | Y25: Albany | AA25: NYC | AB25: New York | AC25: 10021 | AD25: Consolidated Edison | AE25: Consolidated Edison | AF25: Consolidated Edison | AG25: Consolidated Edison | AH25: 0.2211 | AI25: 1.038 | AJ25: 2.754668333 | AK25: 3.06 | AL25: 2.885440817
E26: National Grid Zone A | F26: Zone A - West | H26: 0.1642 | J26: 12206 | K26: 12206Albany | L26: 12206 | M26: 12206 | N26: Zone F - Capital | O26: National Grid | P26: Albany | Q26: Capital Region | R26: Capital District | S26: Capital District | T26: Capital District | V26: Zone F - Capital | W26: Capital District | X26: Capital District | Y26: Albany | AA26: NYC | AB26: New York | AC26: 10022 | AD26: Consolidated Edison | AE26: Consolidated Edison | AF26: Consolidated Edison | AG26: Consolidated Edison | AH26: 0.2211 | AI26: 1.038 | AJ26: 2.754668333 | AK26: 3.06 | AL26: 2.885440817
E27: National Grid Zone B | F27: Zone B - Genesee | H27: 0.1642 | J27: 12207 | K27: 12207Albany | L27: 12207 | M27: 12207 | N27: Zone F - Capital | O27: National Grid | P27: Albany | Q27: Capital Region | R27: Capital District | S27: Capital District | T27: Capital District | V27: Zone F - Capital | W27: Capital District | X27: Capital District | Y27: Albany | AA27: NYC | AB27: New York | AC27: 10023 | AD27: Consolidated Edison | AE27: Consolidated Edison | AF27: Consolidated Edison | AG27: Consolidated Edison | AH27: 0.2211 | AI27: 1.038 | AJ27: 2.754668333 | AK27: 3.06 | AL27: 2.885440817
E28: National Grid Zone C | F28: Zone C - Central | H28: 0.1642 | J28: 12208 | K28: 12208Albany | L28: 12208 | M28: 12208 | N28: Zone F - Capital | O28: National Grid | P28: Albany | Q28: Capital Region | R28: Capital District | S28: Capital District | T28: Capital District | V28: Zone F - Capital | W28: Capital District | X28: Capital District | Y28: Albany | AA28: NYC | AB28: New York | AC28: 10024 | AD28: Consolidated Edison | AE28: Consolidated Edison | AF28: Consolidated Edison | AG28: Consolidated Edison | AH28: 0.2211 | AI28: 1.038 | AJ28: 2.754668333 | AK28: 3.06 | AL28: 2.885440817
E29: National Grid Zone D | F29: Zone D - North | H29: 0.1642 | J29: 12209 | K29: 12209Albany | L29: 12209 | M29: 12209 | N29: Zone F - Capital | O29: National Grid | P29: Albany | Q29: Capital Region | R29: Capital District | S29: Capital District | T29: Capital District | V29: Zone F - Capital | W29: Capital District | X29: Capital District | Y29: Albany | AA29: NYC | AB29: New York | AC29: 10025 | AD29: Consolidated Edison | AE29: Consolidated Edison | AF29: Consolidated Edison | AG29: Consolidated Edison | AH29: 0.2211 | AI29: 1.038 | AJ29: 2.754668333 | AK29: 3.06 | AL29: 2.885440817
E30: National Grid Zone E | F30: Zone E - Mohawk Valley | H30: 0.1642 | J30: 12210 | K30: 12210Albany | L30: 12210 | M30: 12210 | N30: Zone F - Capital | O30: National Grid | P30: Albany | Q30: Capital Region | R30: Capital District | S30: Capital District | T30: Capital District | V30: Zone F - Capital | W30: Capital District | X30: Capital District | Y30: Albany | AA30: NYC | AB30: New York | AC30: 10026 | AD30: Consolidated Edison | AE30: Consolidated Edison | AF30: Consolidated Edison | AG30: Consolidated Edison | AH30: 0.2211 | AI30: 1.038 | AJ30: 2.754668333 | AK30: 3.06 | AL30: 2.885440817
E31: National Grid Zone F | F31: Zone F - Capital | H31: 0.1642 | J31: 12211 | K31: 12211Albany | L31: 12211 | M31: 12211 | N31: Zone F - Capital | O31: National Grid | P31: Albany | Q31: Capital Region | R31: Capital District | S31: Capital District | T31: Capital District | V31: Zone F - Capital | W31: Capital District | X31: Capital District | Y31: Albany | AA31: NYC | AB31: New York | AC31: 10027 | AD31: Consolidated Edison | AE31: Consolidated Edison | AF31: Consolidated Edison | AG31: Consolidated Edison | AH31: 0.2211 | AI31: 1.038 | AJ31: 2.754668333 | AK31: 3.06 | AL31: 2.885440817
J32: 12212 | K32: 12212Albany | L32: 12212 | M32: 12212 | N32: Zone F - Capital | O32: National Grid | P32: Albany | Q32: Capital Region | R32: Capital District | S32: Capital District | T32: Capital District | V32: Zone F - Capital | W32: Capital District | X32: Capital District | Y32: Albany | AA32: NYC | AB32: New York | AC32: 10028 | AD32: Consolidated Edison | AE32: Consolidated Edison | AF32: Consolidated Edison | AG32: Consolidated Edison | AH32: 0.2211 | AI32: 1.038 | AJ32: 2.754668333 | AK32: 3.06 | AL32: 2.885440817
E33: Zip | F33: =VLOOKUP(B2,$M$2:$N$2159,2,) ->  | H33: =IF(ISERROR(VLOOKUP(F33,$F$26:$H$31,3,)),"",VLOOKUP(F33,$F$26:$H$31,3,)) ->  | J33: 12214 | K33: 12214Albany | L33: 12214 | M33: 12214 | N33: Zone F - Capital | O33: National Grid | P33: Albany | Q33: Capital Region | R33: Capital District | S33: Capital District | T33: Capital District | V33: Zone F - Capital | W33: Capital District | X33: Capital District | Y33: Albany | AA33: NYC | AB33: New York | AC33: 10029 | AD33: Consolidated Edison | AE33: Consolidated Edison | AF33: Consolidated Edison | AG33: Consolidated Edison | AH33: 0.2211 | AI33: 1.038 | AJ33: 2.754668333 | AK33: 3.06 | AL33: 2.885440817
E34: County | J34: 12220 | K34: 12220Albany | L34: 12220 | M34: 12220 | N34: Zone F - Capital | O34: National Grid | P34: Albany | Q34: Capital Region | R34: Capital District | S34: Capital District | T34: Capital District | V34: Zone F - Capital | W34: Capital District | X34: Capital District | Y34: Albany | AA34: NYC | AB34: New York | AC34: 10030 | AD34: Consolidated Edison | AE34: Consolidated Edison | AF34: Consolidated Edison | AG34: Consolidated Edison | AH34: 0.2211 | AI34: 1.038 | AJ34: 2.754668333 | AK34: 3.06 | AL34: 2.885440817
E35: Final | F35: =F33 ->  | H35: =H33 ->  | J35: 12222 | K35: 12222Albany | L35: 12222 | M35: 12222 | N35: Zone F - Capital | O35: National Grid | P35: Albany | Q35: Capital Region | R35: Capital District | S35: Capital District | T35: Capital District | V35: Zone F - Capital | W35: Capital District | X35: Capital District | Y35: Albany | AA35: NYC | AB35: New York | AC35: 10031 | AD35: Consolidated Edison | AE35: Consolidated Edison | AF35: Consolidated Edison | AG35: Consolidated Edison | AH35: 0.2211 | AI35: 1.038 | AJ35: 2.754668333 | AK35: 3.06 | AL35: 2.885440817
J36: 12223 | K36: 12223Albany | L36: 12223 | M36: 12223 | N36: Zone F - Capital | O36: National Grid | P36: Albany | Q36: Capital Region | R36: Capital District | S36: Capital District | T36: Capital District | V36: Zone F - Capital | W36: Capital District | X36: Capital District | Y36: Albany | AA36: NYC | AB36: New York | AC36: 10032 | AD36: Consolidated Edison | AE36: Consolidated Edison | AF36: Consolidated Edison | AG36: Consolidated Edison | AH36: 0.2211 | AI36: 1.038 | AJ36: 2.754668333 | AK36: 3.06 | AL36: 2.885440817
J37: 12224 | K37: 12224Albany | L37: 12224 | M37: 12224 | N37: Zone F - Capital | O37: National Grid | P37: Albany | Q37: Capital Region | R37: Capital District | S37: Capital District | T37: Capital District | V37: Zone F - Capital | W37: Capital District | X37: Capital District | Y37: Albany | AA37: NYC | AB37: New York | AC37: 10033 | AD37: Consolidated Edison | AE37: Consolidated Edison | AF37: Consolidated Edison | AG37: Consolidated Edison | AH37: 0.2211 | AI37: 1.038 | AJ37: 2.754668333 | AK37: 3.06 | AL37: 2.885440817
J38: 12225 | K38: 12225Albany | L38: 12225 | M38: 12225 | N38: Zone F - Capital | O38: National Grid | P38: Albany | Q38: Capital Region | R38: Capital District | S38: Capital District | T38: Capital District | V38: Zone F - Capital | W38: Capital District | X38: Capital District | Y38: Albany | AA38: NYC | AB38: New York | AC38: 10034 | AD38: Consolidated Edison | AE38: Consolidated Edison | AF38: Consolidated Edison | AG38: Consolidated Edison | AH38: 0.2211 | AI38: 1.038 | AJ38: 2.754668333 | AK38: 3.06 | AL38: 2.885440817
E39: NYSEG Sub Lookup | J39: 12226 | K39: 12226Albany | L39: 12226 | M39: 12226 | N39: Zone F - Capital | O39: National Grid | P39: Albany | Q39: Capital Region | R39: Capital District | S39: Capital District | T39: Capital District | V39: Zone F - Capital | W39: Capital District | X39: Capital District | Y39: Albany | AA39: NYC | AB39: New York | AC39: 10035 | AD39: Consolidated Edison | AE39: Consolidated Edison | AF39: Consolidated Edison | AG39: Consolidated Edison | AH39: 0.2211 | AI39: 1.038 | AJ39: 2.754668333 | AK39: 3.06 | AL39: 2.885440817
E40: NYSEG West (Zones A-E) | F40: Zone A - West | H40: 0.1635 | J40: 12227 | K40: 12227Albany | L40: 12227 | M40: 12227 | N40: Zone F - Capital | O40: National Grid | P40: Albany | Q40: Capital Region | R40: Capital District | S40: Capital District | T40: Capital District | V40: Zone F - Capital | W40: Capital District | X40: Capital District | Y40: Albany | AA40: NYC | AB40: New York | AC40: 10036 | AD40: Consolidated Edison | AE40: Consolidated Edison | AF40: Consolidated Edison | AG40: Consolidated Edison | AH40: 0.2211 | AI40: 1.038 | AJ40: 2.754668333 | AK40: 3.06 | AL40: 2.885440817
E41: NYSEG West (Zones A-E) | F41: Zone B - Genesee | H41: 0.1635 | J41: 12228 | K41: 12228Albany | L41: 12228 | M41: 12228 | N41: Zone F - Capital | O41: National Grid | P41: Albany | Q41: Capital Region | R41: Capital District | S41: Capital District | T41: Capital District | V41: Zone F - Capital | W41: Capital District | X41: Capital District | Y41: Albany | AA41: NYC | AB41: New York | AC41: 10037 | AD41: Consolidated Edison | AE41: Consolidated Edison | AF41: Consolidated Edison | AG41: Consolidated Edison | AH41: 0.2211 | AI41: 1.038 | AJ41: 2.754668333 | AK41: 3.06 | AL41: 2.885440817
E42: NYSEG West (Zones A-E) | F42: Zone C - Central | H42: 0.1635 | J42: 12229 | K42: 12229Albany | L42: 12229 | M42: 12229 | N42: Zone F - Capital | O42: National Grid | P42: Albany | Q42: Capital Region | R42: Capital District | S42: Capital District | T42: Capital District | V42: Zone F - Capital | W42: Capital District | X42: Capital District | Y42: Albany | AA42: NYC | AB42: New York | AC42: 10038 | AD42: Consolidated Edison | AE42: Consolidated Edison | AF42: Consolidated Edison | AG42: Consolidated Edison | AH42: 0.2211 | AI42: 1.038 | AJ42: 2.754668333 | AK42: 3.06 | AL42: 2.885440817
E43: NYSEG West (Zones A-E) | F43: Zone D - North | H43: 0.1635 | J43: 12230 | K43: 12230Albany | L43: 12230 | M43: 12230 | N43: Zone F - Capital | O43: National Grid | P43: Albany | Q43: Capital Region | R43: Capital District | S43: Capital District | T43: Capital District | V43: Zone F - Capital | W43: Capital District | X43: Capital District | Y43: Albany | AA43: NYC | AB43: New York | AC43: 10039 | AD43: Consolidated Edison | AE43: Consolidated Edison | AF43: Consolidated Edison | AG43: Consolidated Edison | AH43: 0.2211 | AI43: 1.038 | AJ43: 2.754668333 | AK43: 3.06 | AL43: 2.885440817
E44: NYSEG West (Zones A-E) | F44: Zone E - Mohawk Valley | H44: 0.1635 | J44: 12231 | K44: 12231Albany | L44: 12231 | M44: 12231 | N44: Zone F - Capital | O44: National Grid | P44: Albany | Q44: Capital Region | R44: Capital District | S44: Capital District | T44: Capital District | V44: Zone F - Capital | W44: Capital District | X44: Capital District | Y44: Albany | AA44: NYC | AB44: New York | AC44: 10040 | AD44: Consolidated Edison | AE44: Consolidated Edison | AF44: Consolidated Edison | AG44: Consolidated Edison | AH44: 0.2211 | AI44: 1.038 | AJ44: 2.754668333 | AK44: 3.06 | AL44: 2.885440817
E45: NYSEG East (Zones F) | F45: Zone F - Capital | H45: 0.1635 | J45: 12232 | K45: 12232Albany | L45: 12232 | M45: 12232 | N45: Zone F - Capital | O45: National Grid | P45: Albany | Q45: Capital Region | R45: Capital District | S45: Capital District | T45: Capital District | V45: Zone F - Capital | W45: Capital District | X45: Capital District | Y45: Albany | AA45: NYC | AB45: New York | AC45: 10041 | AD45: Consolidated Edison | AE45: Consolidated Edison | AF45: Consolidated Edison | AG45: Consolidated Edison | AH45: 0.2211 | AI45: 1.038 | AJ45: 2.754668333 | AK45: 3.06 | AL45: 2.885440817
E46: NYSEG Lower Hudson (Zone G-I) | F46: Zone G - Hudson Valley | H46: 0.1635 | J46: 12233 | K46: 12233Albany | L46: 12233 | M46: 12233 | N46: Zone F - Capital | O46: National Grid | P46: Albany | Q46: Capital Region | R46: Capital District | S46: Capital District | T46: Capital District | V46: Zone F - Capital | W46: Capital District | X46: Capital District | Y46: Albany | AA46: NYC | AB46: New York | AC46: 10043 | AD46: Consolidated Edison | AE46: Consolidated Edison | AF46: Consolidated Edison | AG46: Consolidated Edison | AH46: 0.2211 | AI46: 1.038 | AJ46: 2.754668333 | AK46: 3.06 | AL46: 2.885440817
E47: NYSEG Lower Hudson (Zone G-I) | F47: Zone H - Millwood | H47: 0.1635 | J47: 12234 | K47: 12234Albany | L47: 12234 | M47: 12234 | N47: Zone F - Capital | O47: National Grid | P47: Albany | Q47: Capital Region | R47: Capital District | S47: Capital District | T47: Capital District | V47: Zone F - Capital | W47: Capital District | X47: Capital District | Y47: Albany | AA47: NYC | AB47: New York | AC47: 10044 | AD47: Consolidated Edison | AE47: Consolidated Edison | AF47: Consolidated Edison | AG47: Consolidated Edison | AH47: 0.2211 | AI47: 1.038 | AJ47: 2.754668333 | AK47: 3.06 | AL47: 2.885440817
E48: NYSEG Lower Hudson (Zone G-I) | F48: Zone I - Dunwoodie | H48: 0.1635 | J48: 12235 | K48: 12235Albany | L48: 12235 | M48: 12235 | N48: Zone F - Capital | O48: National Grid | P48: Albany | Q48: Capital Region | R48: Capital District | S48: Capital District | T48: Capital District | V48: Zone F - Capital | W48: Capital District | X48: Capital District | Y48: Albany | AA48: NYC | AB48: New York | AC48: 10045 | AD48: Consolidated Edison | AE48: Consolidated Edison | AF48: Consolidated Edison | AG48: Consolidated Edison | AH48: 0.2211 | AI48: 1.038 | AJ48: 2.754668333 | AK48: 3.06 | AL48: 2.885440817
J49: 12236 | K49: 12236Albany | L49: 12236 | M49: 12236 | N49: Zone F - Capital | O49: National Grid | P49: Albany | Q49: Capital Region | R49: Capital District | S49: Capital District | T49: Capital District | V49: Zone F - Capital | W49: Capital District | X49: Capital District | Y49: Albany | AB49: New York | AC49: 10047 | AD49: Consolidated Edison | AE49: Consolidated Edison | AH49: 0.1337 | AI49: 1.403 | AJ49: 2.754668333 | AK49: 3.06 | AL49: 2.885440817
E50: Zip | F50: =VLOOKUP(B2,$M$2:$N$2159,2,) ->  | H50: =VLOOKUP(F50,$F$40:$H$48,3,) ->  | J50: 12237 | K50: 12237Albany | L50: 12237 | M50: 12237 | N50: Zone F - Capital | O50: National Grid | P50: Albany | Q50: Capital Region | R50: Capital District | S50: Capital District | T50: Capital District | V50: Zone F - Capital | W50: Capital District | X50: Capital District | Y50: Albany | AB50: New York | AC50: 10048 | AD50: Consolidated Edison | AE50: Consolidated Edison | AH50: 0.1337 | AI50: 1.403 | AJ50: 2.754668333 | AK50: 3.06 | AL50: 2.885440817
E51: County | F51: =VLOOKUP(B3,P:W,7,) ->  | H51: =VLOOKUP(F51,$F$40:$H$48,3,) ->  | J51: 12238 | K51: 12238Albany | L51: 12238 | M51: 12238 | N51: Zone F - Capital | O51: National Grid | P51: Albany | Q51: Capital Region | R51: Capital District | S51: Capital District | T51: Capital District | V51: Zone F - Capital | W51: Capital District | X51: Capital District | Y51: Albany | AA51: NYC | AB51: New York | AC51: 10055 | AD51: Consolidated Edison | AE51: Consolidated Edison | AF51: Consolidated Edison | AG51: Consolidated Edison | AH51: 0.2211 | AI51: 1.038 | AJ51: 2.754668333 | AK51: 3.06 | AL51: 2.885440817
E52: Final | H52: =H51 ->  | J52: 12239 | K52: 12239Albany | L52: 12239 | M52: 12239 | N52: Zone F - Capital | O52: National Grid | P52: Albany | Q52: Capital Region | R52: Capital District | S52: Capital District | T52: Capital District | V52: Zone F - Capital | W52: Capital District | X52: Capital District | Y52: Albany | AA52: NYC | AB52: New York | AC52: 10060 | AD52: Consolidated Edison | AE52: Consolidated Edison | AF52: Consolidated Edison | AG52: Consolidated Edison | AH52: 0.2211 | AI52: 1.038 | AJ52: 2.754668333 | AK52: 3.06 | AL52: 2.885440817
J53: 12240 | K53: 12240Albany | L53: 12240 | M53: 12240 | N53: Zone F - Capital | O53: National Grid | P53: Albany | Q53: Capital Region | R53: Capital District | S53: Capital District | T53: Capital District | V53: Zone F - Capital | W53: Capital District | X53: Capital District | Y53: Albany | AA53: NYC | AB53: New York | AC53: 10065 | AD53: Consolidated Edison | AE53: Consolidated Edison | AF53: Consolidated Edison | AG53: Consolidated Edison | AH53: 0.2211 | AI53: 1.038 | AJ53: 2.754668333 | AK53: 3.06 | AL53: 2.885440817
J54: 12241 | K54: 12241Albany | L54: 12241 | M54: 12241 | N54: Zone F - Capital | O54: National Grid | P54: Albany | Q54: Capital Region | R54: Capital District | S54: Capital District | T54: Capital District | V54: Zone F - Capital | W54: Capital District | X54: Capital District | Y54: Albany | AA54: NYC | AB54: New York | AC54: 10069 | AD54: Consolidated Edison | AE54: Consolidated Edison | AF54: Consolidated Edison | AG54: Consolidated Edison | AH54: 0.2211 | AI54: 1.038 | AJ54: 2.754668333 | AK54: 3.06 | AL54: 2.885440817
E55: Consolidated Edison - Electric Sub Lookup | J55: 12242 | K55: 12242Albany | L55: 12242 | M55: 12242 | N55: Zone F - Capital | O55: National Grid | P55: Albany | Q55: Capital Region | R55: Capital District | S55: Capital District | T55: Capital District | V55: Zone F - Capital | W55: Capital District | X55: Capital District | Y55: Albany | AB55: New York | AC55: 10072 | AD55: Consolidated Edison | AE55: Consolidated Edison | AH55: 0.1337 | AI55: 1.403 | AJ55: 2.754668333 | AK55: 3.06 | AL55: 2.885440817
E56: Region | H56: $ / kWh | J56: 12243 | K56: 12243Albany | L56: 12243 | M56: 12243 | N56: Zone F - Capital | O56: National Grid | P56: Albany | Q56: Capital Region | R56: Capital District | S56: Capital District | T56: Capital District | V56: Zone F - Capital | W56: Capital District | X56: Capital District | Y56: Albany | AA56: NYC | AB56: New York | AC56: 10075 | AD56: Consolidated Edison | AE56: Consolidated Edison | AF56: Consolidated Edison | AG56: Consolidated Edison | AH56: 0.2211 | AI56: 1.038 | AJ56: 2.754668333 | AK56: 3.06 | AL56: 2.885440817
E57: ConEd NYC | H57: 0.2761 | J57: 12244 | K57: 12244Albany | L57: 12244 | M57: 12244 | N57: Zone F - Capital | O57: National Grid | P57: Albany | Q57: Capital Region | R57: Capital District | S57: Capital District | T57: Capital District | V57: Zone F - Capital | W57: Capital District | X57: Capital District | Y57: Albany | AA57: NYC | AB57: New York | AC57: 10080 | AD57: Consolidated Edison | AE57: Consolidated Edison | AF57: Consolidated Edison | AG57: Consolidated Edison | AH57: 0.2211 | AI57: 1.038 | AJ57: 2.754668333 | AK57: 3.06 | AL57: 2.885440817
E58: ConEd Westchester | H58: 0.2466 | J58: 12245 | K58: 12245Albany | L58: 12245 | M58: 12245 | N58: Zone F - Capital | O58: National Grid | P58: Albany | Q58: Capital Region | R58: Capital District | S58: Capital District | T58: Capital District | V58: Zone F - Capital | W58: Capital District | X58: Capital District | Y58: Albany | AA58: NYC | AB58: New York | AC58: 10081 | AD58: Consolidated Edison | AE58: Consolidated Edison | AF58: Consolidated Edison | AG58: Consolidated Edison | AH58: 0.2211 | AI58: 1.038 | AJ58: 2.754668333 | AK58: 3.06 | AL58: 2.885440817
J59: 12246 | K59: 12246Albany | L59: 12246 | M59: 12246 | N59: Zone F - Capital | O59: National Grid | P59: Albany | Q59: Capital Region | R59: Capital District | S59: Capital District | T59: Capital District | V59: Zone F - Capital | W59: Capital District | X59: Capital District | Y59: Albany | AB59: New York | AC59: 10082 | AD59: Consolidated Edison | AE59: Consolidated Edison | AH59: 0.1337 | AI59: 1.403 | AJ59: 2.754668333 | AK59: 3.06 | AL59: 2.885440817
E60: Zip | F60: =IF(VLOOKUP(B2,M2:U2159,9,)=0,"",VLOOKUP(B2,M2:U2159,9,)) ->  | H60: =IF(ISERROR(VLOOKUP(F60,$E$57:$H$58,4,)),"",VLOOKUP(F60,$E$57:$H$58,4,)) ->  | J60: 12247 | K60: 12247Albany | L60: 12247 | M60: 12247 | N60: Zone F - Capital | O60: National Grid | P60: Albany | Q60: Capital Region | R60: Capital District | S60: Capital District | T60: Capital District | V60: Zone F - Capital | W60: Capital District | X60: Capital District | Y60: Albany | AA60: NYC | AB60: New York | AC60: 10087 | AD60: Consolidated Edison | AE60: Consolidated Edison | AF60: Consolidated Edison | AG60: Consolidated Edison | AH60: 0.2211 | AI60: 1.038 | AJ60: 2.754668333 | AK60: 3.06 | AL60: 2.885440817
E61: Final | F61: =F60 ->  | H61: =IF(ISERROR(H60),"",H60) ->  | J61: 12248 | K61: 12248Albany | L61: 12248 | M61: 12248 | N61: Zone F - Capital | O61: National Grid | P61: Albany | Q61: Capital Region | R61: Capital District | S61: Capital District | T61: Capital District | V61: Zone F - Capital | W61: Capital District | X61: Capital District | Y61: Albany | AA61: NYC | AB61: New York | AC61: 10090 | AD61: Consolidated Edison | AE61: Consolidated Edison | AF61: Consolidated Edison | AG61: Consolidated Edison | AH61: 0.2211 | AI61: 1.038 | AJ61: 2.754668333 | AK61: 3.06 | AL61: 2.885440817
J62: 12249 | K62: 12249Albany | L62: 12249 | M62: 12249 | N62: Zone F - Capital | O62: National Grid | P62: Albany | Q62: Capital Region | R62: Capital District | S62: Capital District | T62: Capital District | V62: Zone F - Capital | W62: Capital District | X62: Capital District | Y62: Albany | AA62: NYC | AB62: New York | AC62: 10101 | AD62: Consolidated Edison | AE62: Consolidated Edison | AF62: Consolidated Edison | AG62: Consolidated Edison | AH62: 0.2211 | AI62: 1.038 | AJ62: 2.754668333 | AK62: 3.06 | AL62: 2.885440817
E63: Residential Natural Gas | H63: 2021-2023 Avg | J63: 12250 | K63: 12250Albany | L63: 12250 | M63: 12250 | N63: Zone F - Capital | O63: National Grid | P63: Albany | Q63: Capital Region | R63: Capital District | S63: Capital District | T63: Capital District | V63: Zone F - Capital | W63: Capital District | X63: Capital District | Y63: Albany | AA63: NYC | AB63: New York | AC63: 10102 | AD63: Consolidated Edison | AE63: Consolidated Edison | AF63: Consolidated Edison | AG63: Consolidated Edison | AH63: 0.2211 | AI63: 1.038 | AJ63: 2.754668333 | AK63: 3.06 | AL63: 2.885440817
E64: Company | H64: $ / Therm | J64: 12252 | K64: 12252Albany | L64: 12252 | M64: 12252 | N64: Zone F - Capital | O64: National Grid | P64: Albany | Q64: Capital Region | R64: Capital District | S64: Capital District | T64: Capital District | V64: Zone F - Capital | W64: Capital District | X64: Capital District | Y64: Albany | AA64: NYC | AB64: New York | AC64: 10103 | AD64: Consolidated Edison | AE64: Consolidated Edison | AF64: Consolidated Edison | AG64: Consolidated Edison | AH64: 0.2211 | AI64: 1.038 | AJ64: 2.754668333 | AK64: 3.06 | AL64: 2.885440817
E65: National Grid - NYC | H65: 1.726 | J65: 12255 | K65: 12255Albany | L65: 12255 | M65: 12255 | N65: Zone F - Capital | O65: National Grid | P65: Albany | Q65: Capital Region | R65: Capital District | S65: Capital District | T65: Capital District | V65: Zone F - Capital | W65: Capital District | X65: Capital District | Y65: Albany | AA65: NYC | AB65: New York | AC65: 10104 | AD65: Consolidated Edison | AE65: Consolidated Edison | AF65: Consolidated Edison | AG65: Consolidated Edison | AH65: 0.2211 | AI65: 1.038 | AJ65: 2.754668333 | AK65: 3.06 | AL65: 2.885440817
E66: Central Hudson Gas and Electric | H66: 2.149 | J66: 12256 | K66: 12256Albany | L66: 12256 | M66: 12256 | N66: Zone F - Capital | O66: National Grid | P66: Albany | Q66: Capital Region | R66: Capital District | S66: Capital District | T66: Capital District | V66: Zone F - Capital | W66: Capital District | X66: Capital District | Y66: Albany | AA66: NYC | AB66: New York | AC66: 10105 | AD66: Consolidated Edison | AE66: Consolidated Edison | AF66: Consolidated Edison | AG66: Consolidated Edison | AH66: 0.2211 | AI66: 1.038 | AJ66: 2.754668333 | AK66: 3.06 | AL66: 2.885440817
E67: Consolidated Edison | H67: 2.28 | J67: 12257 | K67: 12257Albany | L67: 12257 | M67: 12257 | N67: Zone F - Capital | O67: National Grid | P67: Albany | Q67: Capital Region | R67: Capital District | S67: Capital District | T67: Capital District | V67: Zone F - Capital | W67: Capital District | X67: Capital District | Y67: Albany | AA67: NYC | AB67: New York | AC67: 10106 | AD67: Consolidated Edison | AE67: Consolidated Edison | AF67: Consolidated Edison | AG67: Consolidated Edison | AH67: 0.2211 | AI67: 1.038 | AJ67: 2.754668333 | AK67: 3.06 | AL67: 2.885440817
E68: Corning Natural Gas | H68: 1.358 | J68: =L68*1 -> 12260 | K68: 12260Albany | L68: 12260 | M68: 12260 | N68: Zone F - Capital | O68: National Grid | P68: Albany | Q68: Capital Region | R68: Capital District | S68: Capital District | T68: Capital District | V68: Zone F - Capital | W68: Capital District | X68: Capital District | Y68: Albany | AA68: =VLOOKUP(AC68,J:R,9,) -> NYC | AB68: New York | AC68: 10107 | AD68: Consolidated Edison | AE68: Consolidated Edison | AF68: Consolidated Edison | AG68: Consolidated Edison | AH68: 0.2211 | AI68: 1.038 | AJ68: 2.754668333 | AK68: 3.06 | AL68: 2.885440817
E69: National Grid - Long Island | H69: 1.667 | J69: 12261 | K69: 12261Albany | L69: 12261 | M69: 12261 | N69: Zone F - Capital | O69: National Grid | P69: Albany | Q69: Capital Region | R69: Capital District | S69: Capital District | T69: Capital District | V69: Zone F - Capital | W69: Capital District | X69: Capital District | Y69: Albany | AA69: NYC | AB69: New York | AC69: 10108 | AD69: Consolidated Edison | AE69: Consolidated Edison | AF69: Consolidated Edison | AG69: Consolidated Edison | AH69: 0.2211 | AI69: 1.038 | AJ69: 2.754668333 | AK69: 3.06 | AL69: 2.885440817
E70: National Fuel Gas Distribution | H70: 1.061 | J70: 12288 | K70: 12288Albany | L70: 12288 | M70: 12288 | N70: Zone F - Capital | O70: National Grid | P70: Albany | Q70: Capital Region | R70: Capital District | S70: Capital District | T70: Capital District | V70: Zone F - Capital | W70: Capital District | X70: Capital District | Y70: Albany | AA70: NYC | AB70: New York | AC70: 10109 | AD70: Consolidated Edison | AE70: Consolidated Edison | AF70: Consolidated Edison | AG70: Consolidated Edison | AH70: 0.2211 | AI70: 1.038 | AJ70: 2.754668333 | AK70: 3.06 | AL70: 2.885440817
E71: New York State Electric and Gas | H71: 1.157 | J71: 12183 | K71: 12183Albany | L71: 12183 | M71: 12183 | N71: Zone F - Capital | O71: Municipal Utilities | P71: Albany | Q71: Capital Region | R71: Capital District | S71: Capital District | T71: Capital District | V71: Zone F - Capital | W71: Capital District | X71: Capital District | Y71: Albany | AA71: NYC | AB71: New York | AC71: 10110 | AD71: Consolidated Edison | AE71: Consolidated Edison | AF71: Consolidated Edison | AG71: Consolidated Edison | AH71: 0.2211 | AI71: 1.038 | AJ71: 2.754668333 | AK71: 3.06 | AL71: 2.885440817
E72: National Grid - Upstate | H72: 1.083 | J72: 12007 | K72: 12007Albany | L72: 12007 | M72: 12007 | N72: Zone G - Hudson Valley | O72: National Grid | P72: Albany | Q72: Capital Region | R72: Capital District | S72: Capital District | T72: Capital District | V72: Zone G - Hudson Valley | W72: Capital District | X72: Capital District | Y72: Albany | AA72: NYC | AB72: New York | AC72: 10111 | AD72: Consolidated Edison | AE72: Consolidated Edison | AF72: Consolidated Edison | AG72: Consolidated Edison | AH72: 0.2211 | AI72: 1.038 | AJ72: 2.754668333 | AK72: 3.06 | AL72: 2.885440817
E73: Orange and Rockland | H73: 1.551 | J73: 12046 | K73: 12046Albany | L73: 12046 | M73: 12046 | N73: Zone G - Hudson Valley | O73: National Grid | P73: Albany | Q73: Capital Region | R73: Capital District | S73: Capital District | T73: Capital District | V73: Zone G - Hudson Valley | W73: Capital District | X73: Capital District | Y73: Albany | AA73: NYC | AB73: New York | AC73: 10112 | AD73: Consolidated Edison | AE73: Consolidated Edison | AF73: Consolidated Edison | AG73: Consolidated Edison | AH73: 0.2211 | AI73: 1.038 | AJ73: 2.754668333 | AK73: 3.06 | AL73: 2.885440817
E74: St. Lawrence | H74: 1.282 | J74: 12045 | K74: 12045Albany | L74: 12045 | M74: 12045 | N74: Zone G - Hudson Valley | O74: Central Hudson Gas and Electric | P74: Albany | Q74: Capital Region | R74: Capital District | S74: Capital District | T74: Capital District | V74: Zone G - Hudson Valley | W74: Capital District | X74: Capital District | Y74: Albany | AA74: NYC | AB74: New York | AC74: 10113 | AD74: Consolidated Edison | AE74: Consolidated Edison | AF74: Consolidated Edison | AG74: Consolidated Edison | AH74: 0.2211 | AI74: 1.038 | AJ74: 2.754668333 | AK74: 3.06 | AL74: 2.885440817
E75: Rochester Gas and Electric | H75: 1 | J75: 12055 | K75: 12055Albany | L75: 12055 | M75: 12055 | N75: Zone G - Hudson Valley | O75: Central Hudson Gas and Electric | P75: Albany | Q75: Capital Region | R75: Capital District | S75: Capital District | T75: Capital District | V75: Zone G - Hudson Valley | W75: Capital District | X75: Capital District | Y75: Albany | AA75: NYC | AB75: New York | AC75: 10114 | AD75: Consolidated Edison | AE75: Consolidated Edison | AF75: Consolidated Edison | AG75: Consolidated Edison | AH75: 0.2211 | AI75: 1.038 | AJ75: 2.754668333 | AK75: 3.06 | AL75: 2.885440817
J76: 12120 | K76: 12120Albany | L76: 12120 | M76: 12120 | N76: Zone G - Hudson Valley | O76: Central Hudson Gas and Electric | P76: Albany | Q76: Capital Region | R76: Capital District | S76: Capital District | T76: Capital District | V76: Zone G - Hudson Valley | W76: Capital District | X76: Capital District | Y76: Albany | AA76: NYC | AB76: New York | AC76: 10115 | AD76: Consolidated Edison | AE76: Consolidated Edison | AF76: Consolidated Edison | AG76: Consolidated Edison | AH76: 0.2211 | AI76: 1.038 | AJ76: 2.754668333 | AK76: 3.06 | AL76: 2.885440817
E77: Heating Oil (Home Monitoring Program) | H77: 2022-2023 Avg | J77: 12143 | K77: 12143Albany | L77: 12143 | M77: 12143 | N77: Zone G - Hudson Valley | O77: Central Hudson Gas and Electric | P77: Albany | Q77: Capital Region | R77: Capital District | S77: Capital District | T77: Capital District | V77: Zone G - Hudson Valley | W77: Capital District | X77: Capital District | Y77: Albany | AA77: NYC | AB77: New York | AC77: 10116 | AD77: Consolidated Edison | AE77: Consolidated Edison | AF77: Consolidated Edison | AG77: Consolidated Edison | AH77: 0.2211 | AI77: 1.038 | AJ77: 2.754668333 | AK77: 3.06 | AL77: 2.885440817
E78: Region | H78: $ / Gal | J78: 12147 | K78: 12147Albany | L78: 12147 | M78: 12147 | N78: Zone G - Hudson Valley | O78: Central Hudson Gas and Electric | P78: Albany | Q78: Capital Region | R78: Capital District | S78: Capital District | T78: Capital District | V78: Zone G - Hudson Valley | W78: Capital District | X78: Capital District | Y78: Albany | AA78: NYC | AB78: New York | AC78: 10117 | AD78: Consolidated Edison | AE78: Consolidated Edison | AF78: Consolidated Edison | AG78: Consolidated Edison | AH78: 0.2211 | AI78: 1.038 | AJ78: 2.754668333 | AK78: 3.06 | AL78: 2.885440817
E79: Long Island | H79: 4.39 | J79: 12193 | K79: 12193Albany | L79: 12193 | M79: 12193 | N79: Zone G - Hudson Valley | O79: Central Hudson Gas and Electric | P79: Albany | Q79: Capital Region | R79: Capital District | S79: Capital District | T79: Capital District | V79: Zone G - Hudson Valley | W79: Capital District | X79: Capital District | Y79: Albany | AA79: NYC | AB79: New York | AC79: 10118 | AD79: Consolidated Edison | AE79: Consolidated Edison | AF79: Consolidated Edison | AG79: Consolidated Edison | AH79: 0.2211 | AI79: 1.038 | AJ79: 2.754668333 | AK79: 3.06 | AL79: 2.885440817
E80: NYC | H80: 4.41 | J80: 12469 | K80: 12469Albany | L80: 12469 | M80: 12469 | N80: Zone G - Hudson Valley | O80: Central Hudson Gas and Electric | P80: Albany | Q80: Capital Region | R80: Capital District | S80: Capital District | T80: Capital District | V80: Zone G - Hudson Valley | W80: Capital District | X80: Capital District | Y80: Binghamton | AA80: NYC | AB80: New York | AC80: 10119 | AD80: Consolidated Edison | AE80: Consolidated Edison | AF80: Consolidated Edison | AG80: Consolidated Edison | AH80: 0.2211 | AI80: 1.038 | AJ80: 2.754668333 | AK80: 3.06 | AL80: 2.885440817
E81: Lower Hudson | H81: 4.35 | J81: 14029 | K81: 14029Allegany | L81: 14029 | M81: 14029 | N81: Zone A - West | O81: National Grid | P81: Allegany | Q81: Western New York | R81: Western | S81: Western | T81: Western | V81: Zone A - West | W81: Western | X81: Western Region | Y81: Buffalo | AA81: NYC | AB81: New York | AC81: 10120 | AD81: Consolidated Edison | AE81: Consolidated Edison | AF81: Consolidated Edison | AG81: Consolidated Edison | AH81: 0.2211 | AI81: 1.038 | AJ81: 2.754668333 | AK81: 3.06 | AL81: 2.885440817
E82: Upper Hudson | H82: 4.35 | J82: 14727 | K82: 14727Allegany | L82: 14727 | M82: 14727 | N82: Zone A - West | O82: National Grid | P82: Allegany | Q82: Western New York | R82: Western | S82: Western | T82: Western | V82: Zone A - West | W82: Western | X82: Western Region | Y82: Buffalo | AA82: NYC | AB82: New York | AC82: 10121 | AD82: Consolidated Edison | AE82: Consolidated Edison | AF82: Consolidated Edison | AG82: Consolidated Edison | AH82: 0.2211 | AI82: 1.038 | AJ82: 2.754668333 | AK82: 3.06 | AL82: 2.885440817
E83: Capital District | H83: 4.13 | J83: 14786 | K83: 14786Allegany | L83: 14786 | M83: 14786 | N83: Zone A - West | O83: National Grid | P83: Allegany | Q83: Western New York | R83: Western | S83: Western | T83: Western | V83: Zone A - West | W83: Western | X83: Western Region | Y83: Buffalo | AA83: NYC | AB83: New York | AC83: 10122 | AD83: Consolidated Edison | AE83: Consolidated Edison | AF83: Consolidated Edison | AG83: Consolidated Edison | AH83: 0.2211 | AI83: 1.038 | AJ83: 2.754668333 | AK83: 3.06 | AL83: 2.885440817
E84: North Country | H84: 4.32 | J84: 14709 | K84: 14709Allegany | L84: 14709 | M84: 14709 | N84: Zone B - Genesee | O84: Rochester Gas and Electric | P84: Allegany | Q84: Western New York | R84: Western | S84: Western | T84: Western | V84: Zone B - Genesee | W84: Western | X84: Western Region | Y84: Buffalo | AA84: NYC | AB84: New York | AC84: 10123 | AD84: Consolidated Edison | AE84: Consolidated Edison | AF84: Consolidated Edison | AG84: Consolidated Edison | AH84: 0.2211 | AI84: 1.038 | AJ84: 2.754668333 | AK84: 3.06 | AL84: 2.885440817
E85: Central | H85: 4.18 | J85: 14711 | K85: 14711Allegany | L85: 14711 | M85: 14711 | N85: Zone B - Genesee | O85: Rochester Gas and Electric | P85: Allegany | Q85: Western New York | R85: Western | S85: Western | T85: Western | V85: Zone B - Genesee | W85: Western | X85: Western Region | Y85: Buffalo | AA85: NYC | AB85: New York | AC85: 10124 | AD85: Consolidated Edison | AE85: Consolidated Edison | AF85: Consolidated Edison | AG85: Consolidated Edison | AH85: 0.2211 | AI85: 1.038 | AJ85: 2.754668333 | AK85: 3.06 | AL85: 2.885440817
E86: Western | H86: 4.59 | J86: 14715 | K86: 14715Allegany | L86: 14715 | M86: 14715 | N86: Zone B - Genesee | O86: Rochester Gas and Electric | P86: Allegany | Q86: Western New York | R86: Western | S86: Western | T86: Western | V86: Zone B - Genesee | W86: Western | X86: Western Region | Y86: Buffalo | AA86: NYC | AB86: New York | AC86: 10125 | AD86: Consolidated Edison | AE86: Consolidated Edison | AF86: Consolidated Edison | AG86: Consolidated Edison | AH86: 0.2211 | AI86: 1.038 | AJ86: 2.754668333 | AK86: 3.06 | AL86: 2.885440817
J87: 14717 | K87: 14717Allegany | L87: 14717 | M87: 14717 | N87: Zone B - Genesee | O87: Rochester Gas and Electric | P87: Allegany | Q87: Western New York | R87: Western | S87: Western | T87: Western | V87: Zone B - Genesee | W87: Western | X87: Western Region | Y87: Buffalo | AA87: NYC | AB87: New York | AC87: 10126 | AD87: Consolidated Edison | AE87: Consolidated Edison | AF87: Consolidated Edison | AG87: Consolidated Edison | AH87: 0.2211 | AI87: 1.038 | AJ87: 2.754668333 | AK87: 3.06 | AL87: 2.885440817
E88: Zip | F88: =VLOOKUP(B2,$M$2:$R$2159,6,) ->  | H88: =VLOOKUP(F88,E79:H86,4,) ->  | J88: 14721 | K88: 14721Allegany | L88: 14721 | M88: 14721 | N88: Zone B - Genesee | O88: Rochester Gas and Electric | P88: Allegany | Q88: Western New York | R88: Western | S88: Western | T88: Western | V88: Zone B - Genesee | W88: Western | X88: Western Region | Y88: Buffalo | AA88: NYC | AB88: New York | AC88: 10128 | AD88: Consolidated Edison | AE88: Consolidated Edison | AF88: Consolidated Edison | AG88: Consolidated Edison | AH88: 0.2211 | AI88: 1.038 | AJ88: 2.754668333 | AK88: 3.06 | AL88: 2.885440817
E89: County | F89: =VLOOKUP(B3,P2:R2159,3,) ->  | H89: =VLOOKUP(F89,E79:H86,4,) ->  | J89: 14735 | K89: 14735Allegany | L89: 14735 | M89: 14735 | N89: Zone B - Genesee | O89: Rochester Gas and Electric | P89: Allegany | Q89: Western New York | R89: Western | S89: Western | T89: Western | V89: Zone B - Genesee | W89: Western | X89: Western Region | Y89: Buffalo | AA89: NYC | AB89: New York | AC89: 10129 | AD89: Consolidated Edison | AE89: Consolidated Edison | AF89: Consolidated Edison | AG89: Consolidated Edison | AH89: 0.2211 | AI89: 1.038 | AJ89: 2.754668333 | AK89: 3.06 | AL89: 2.885440817
F90: Final | H90: =IF(ISERROR(H88),H89,H88) ->  | J90: 14739 | K90: 14739Allegany | L90: 14739 | M90: 14739 | N90: Zone B - Genesee | O90: Rochester Gas and Electric | P90: Allegany | Q90: Western New York | R90: Western | S90: Western | T90: Western | V90: Zone B - Genesee | W90: Western | X90: Western Region | Y90: Buffalo | AA90: NYC | AB90: New York | AC90: 10130 | AD90: Consolidated Edison | AE90: Consolidated Edison | AF90: Consolidated Edison | AG90: Consolidated Edison | AH90: 0.2211 | AI90: 1.038 | AJ90: 2.754668333 | AK90: 3.06 | AL90: 2.885440817
J91: 14744 | K91: 14744Allegany | L91: 14744 | M91: 14744 | N91: Zone B - Genesee | O91: Rochester Gas and Electric | P91: Allegany | Q91: Western New York | R91: Western | S91: Western | T91: Western | V91: Zone B - Genesee | W91: Western | X91: Western Region | Y91: Buffalo | AA91: NYC | AB91: New York | AC91: 10131 | AD91: Consolidated Edison | AE91: Consolidated Edison | AF91: Consolidated Edison | AG91: Consolidated Edison | AH91: 0.2211 | AI91: 1.038 | AJ91: 2.754668333 | AK91: 3.06 | AL91: 2.885440817
J92: 14745 | K92: 14745Allegany | L92: 14745 | M92: 14745 | N92: Zone B - Genesee | O92: Rochester Gas and Electric | P92: Allegany | Q92: Western New York | R92: Western | S92: Western | T92: Western | V92: Zone B - Genesee | W92: Western | X92: Western Region | Y92: Buffalo | AA92: NYC | AB92: New York | AC92: 10132 | AD92: Consolidated Edison | AE92: Consolidated Edison | AF92: Consolidated Edison | AG92: Consolidated Edison | AH92: 0.2211 | AI92: 1.038 | AJ92: 2.754668333 | AK92: 3.06 | AL92: 2.885440817
E93: Kerosene (Home Monitoring Program) | H93: 2022-2023 Avg | J93: 14754 | K93: 14754Allegany | L93: 14754 | M93: 14754 | N93: Zone B - Genesee | O93: Rochester Gas and Electric | P93: Allegany | Q93: Western New York | R93: Western | S93: Western | T93: Western | V93: Zone B - Genesee | W93: Western | X93: Western Region | Y93: Buffalo | AA93: NYC | AB93: New York | AC93: 10133 | AD93: Consolidated Edison | AE93: Consolidated Edison | AF93: Consolidated Edison | AG93: Consolidated Edison | AH93: 0.2211 | AI93: 1.038 | AJ93: 2.754668333 | AK93: 3.06 | AL93: 2.885440817
E94: Region | H94: $ / Gal | J94: 14774 | K94: 14774Allegany | L94: 14774 | M94: 14774 | N94: Zone B - Genesee | O94: Rochester Gas and Electric | P94: Allegany | Q94: Western New York | R94: Western | S94: Western | T94: Western | V94: Zone B - Genesee | W94: Western | X94: Western Region | Y94: Buffalo | AA94: NYC | AB94: New York | AC94: 10138 | AD94: Consolidated Edison | AE94: Consolidated Edison | AF94: Consolidated Edison | AG94: Consolidated Edison | AH94: 0.2211 | AI94: 1.038 | AJ94: 2.754668333 | AK94: 3.06 | AL94: 2.885440817
E95: Mid-Hudson | H95: 5.61 | J95: 14777 | K95: 14777Allegany | L95: 14777 | M95: 14777 | N95: Zone B - Genesee | O95: Rochester Gas and Electric | P95: Allegany | Q95: Western New York | R95: Western | S95: Western | T95: Western | V95: Zone B - Genesee | W95: Western | X95: Western Region | Y95: Buffalo | AB95: New York | AC95: 10149 | AD95: Consolidated Edison | AE95: Consolidated Edison | AH95: 0.1337 | AI95: 1.403 | AJ95: 2.754668333 | AK95: 3.06 | AL95: 2.885440817
E96: Capital District | H96: 5.3 | J96: 14813 | K96: 14813Allegany | L96: 14813 | M96: 14813 | N96: Zone B - Genesee | O96: Rochester Gas and Electric | P96: Allegany | Q96: Western New York | R96: Western | S96: Western | T96: Western | V96: Zone B - Genesee | W96: Western | X96: Western Region | Y96: Buffalo | AA96: NYC | AB96: New York | AC96: 10150 | AD96: Consolidated Edison | AE96: Consolidated Edison | AF96: Consolidated Edison | AG96: Consolidated Edison | AH96: 0.2211 | AI96: 1.038 | AJ96: 2.754668333 | AK96: 3.06 | AL96: 2.885440817
E97: North Country | H97: 5.16 | J97: 14707 | K97: 14707Allegany | L97: 14707 | M97: 14707 | N97: Zone B - Genesee | O97: National Grid | P97: Allegany | Q97: Western New York | R97: Western | S97: Western | T97: Western | V97: Zone B - Genesee | W97: Western | X97: Western Region | Y97: Buffalo | AA97: NYC | AB97: New York | AC97: 10151 | AD97: Consolidated Edison | AE97: Consolidated Edison | AF97: Consolidated Edison | AG97: Consolidated Edison | AH97: 0.2211 | AI97: 1.038 | AJ97: 2.754668333 | AK97: 3.06 | AL97: 2.885440817
E98: Central | H98: 5.02 | J98: 14708 | K98: 14708Allegany | L98: 14708 | M98: 14708 | N98: Zone B - Genesee | O98: National Grid | P98: Allegany | Q98: Western New York | R98: Western | S98: Western | T98: Western | V98: Zone B - Genesee | W98: Western | X98: Western Region | Y98: Buffalo | AA98: NYC | AB98: New York | AC98: 10152 | AD98: Consolidated Edison | AE98: Consolidated Edison | AF98: Consolidated Edison | AG98: Consolidated Edison | AH98: 0.2211 | AI98: 1.038 | AJ98: 2.754668333 | AK98: 3.06 | AL98: 2.885440817
E99: Western | H99: 5.34 | J99: 14714 | K99: 14714Allegany | L99: 14714 | M99: 14714 | N99: Zone B - Genesee | O99: National Grid | P99: Allegany | Q99: Western New York | R99: Western | S99: Western | T99: Western | V99: Zone B - Genesee | W99: Western | X99: Western Region | Y99: Buffalo | AA99: NYC | AB99: New York | AC99: 10153 | AD99: Consolidated Edison | AE99: Consolidated Edison | AF99: Consolidated Edison | AG99: Consolidated Edison | AH99: 0.2211 | AI99: 1.038 | AJ99: 2.754668333 | AK99: 3.06 | AL99: 2.885440817
J100: 14880 | K100: 14880Allegany | L100: 14880 | M100: 14880 | N100: Zone B - Genesee | O100: National Grid | P100: Allegany | Q100: Western New York | R100: Western | S100: Western | T100: Western | V100: Zone B - Genesee | W100: Western | X100: Western Region | Y100: Buffalo | AA100: NYC | AB100: New York | AC100: 10154 | AD100: Consolidated Edison | AE100: Consolidated Edison | AF100: Consolidated Edison | AG100: Consolidated Edison | AH100: 0.2211 | AI100: 1.038 | AJ100: 2.754668333 | AK100: 3.06 | AL100: 2.885440817
E101: Zip | F101: =VLOOKUP(B2,$M$2:$S$2159,7,) ->  | H101: =VLOOKUP(F101,E95:H99,4,) ->  | J101: 14897 | K101: 14897Allegany | L101: 14897 | M101: 14897 | N101: Zone C - Central | O101: National Grid | P101: Allegany | Q101: Western New York | R101: Western | S101: Western | T101: Western | V101: Zone C - Central | W101: Western | X101: Western Region | Y101: Buffalo | AA101: NYC | AB101: New York | AC101: 10155 | AD101: Consolidated Edison | AE101: Consolidated Edison | AF101: Consolidated Edison | AG101: Consolidated Edison | AH101: 0.2211 | AI101: 1.038 | AJ101: 2.754668333 | AK101: 3.06 | AL101: 2.885440817
E102: County | F102: =VLOOKUP(B3,P2:S2159,4,) ->  | H102: =VLOOKUP(F102,E95:H99,4,) ->  | J102: 14802 | K102: 14802Allegany | L102: 14802 | M102: 14802 | N102: Zone C - Central | O102: New York State Electric and Gas | P102: Allegany | Q102: Western New York | R102: Western | S102: Western | T102: Western | V102: Zone C - Central | W102: Western | X102: Western Region | Y102: Buffalo | AA102: NYC | AB102: New York | AC102: 10156 | AD102: Consolidated Edison | AE102: Consolidated Edison | AF102: Consolidated Edison | AG102: Consolidated Edison | AH102: 0.2211 | AI102: 1.038 | AJ102: 2.754668333 | AK102: 3.06 | AL102: 2.885440817
F103: Final | H103: =IF(ISERROR(H101),H102,H101) ->  | J103: 14803 | K103: 14803Allegany | L103: 14803 | M103: 14803 | N103: Zone C - Central | O103: New York State Electric and Gas | P103: Allegany | Q103: Western New York | R103: Western | S103: Western | T103: Western | V103: Zone C - Central | W103: Western | X103: Western Region | Y103: Buffalo | AA103: NYC | AB103: New York | AC103: 10157 | AD103: Consolidated Edison | AE103: Consolidated Edison | AF103: Consolidated Edison | AG103: Consolidated Edison | AH103: 0.2211 | AI103: 1.038 | AJ103: 2.754668333 | AK103: 3.06 | AL103: 2.885440817
J104: 14804 | K104: 14804Allegany | L104: 14804 | M104: 14804 | N104: Zone C - Central | O104: New York State Electric and Gas | P104: Allegany | Q104: Western New York | R104: Western | S104: Western | T104: Western | V104: Zone C - Central | W104: Western | X104: Western Region | Y104: Buffalo | AA104: NYC | AB104: New York | AC104: 10158 | AD104: Consolidated Edison | AE104: Consolidated Edison | AF104: Consolidated Edison | AG104: Consolidated Edison | AH104: 0.2211 | AI104: 1.038 | AJ104: 2.754668333 | AK104: 3.06 | AL104: 2.885440817
E105: Propane (Home Monitoring Program) | H105: 2022-2023 Avg | J105: 14822 | K105: 14822Allegany | L105: 14822 | M105: 14822 | N105: Zone C - Central | O105: New York State Electric and Gas | P105: Allegany | Q105: Western New York | R105: Western | S105: Western | T105: Western | V105: Zone C - Central | W105: Western | X105: Western Region | Y105: Buffalo | AA105: NYC | AB105: New York | AC105: 10159 | AD105: Consolidated Edison | AE105: Consolidated Edison | AF105: Consolidated Edison | AG105: Consolidated Edison | AH105: 0.2211 | AI105: 1.038 | AJ105: 2.754668333 | AK105: 3.06 | AL105: 2.885440817
E106: Region | H106: $ / Gal | J106: 14884 | K106: 14884Allegany | L106: 14884 | M106: 14884 | N106: Zone C - Central | O106: New York State Electric and Gas | P106: Allegany | Q106: Western New York | R106: Western | S106: Western | T106: Western | V106: Zone C - Central | W106: Western | X106: Western Region | Y106: Buffalo | AA106: NYC | AB106: New York | AC106: 10160 | AD106: Consolidated Edison | AE106: Consolidated Edison | AF106: Consolidated Edison | AG106: Consolidated Edison | AH106: 0.2211 | AI106: 1.038 | AJ106: 2.754668333 | AK106: 3.06 | AL106: 2.885440817
E107: Long Island | H107: 4.02 | J107: 14806 | K107: 14806Allegany | L107: 14806 | M107: 14806 | N107: Zone C - Central | O107: Municipal Utilities | P107: Allegany | Q107: Western New York | R107: Western | S107: Western | T107: Western | V107: Zone C - Central | W107: Western | X107: Western Region | Y107: Buffalo | AA107: NYC | AB107: New York | AC107: 10161 | AD107: Consolidated Edison | AE107: Consolidated Edison | AF107: Consolidated Edison | AG107: Consolidated Edison | AH107: 0.2211 | AI107: 1.038 | AJ107: 2.754668333 | AK107: 3.06 | AL107: 2.885440817
E108: Mid-Hudson | H108: 3.56 | J108: 14895 | K108: 14895Allegany | L108: 14895 | M108: 14895 | N108: Zone C - Central | O108: Municipal Utilities | P108: Allegany | Q108: Western New York | R108: Western | S108: Western | T108: Western | V108: Zone C - Central | W108: Western | X108: Western Region | Y108: Buffalo | AA108: NYC | AB108: New York | AC108: 10162 | AD108: Consolidated Edison | AE108: Consolidated Edison | AF108: Consolidated Edison | AG108: Consolidated Edison | AH108: 0.2211 | AI108: 1.038 | AJ108: 2.754668333 | AK108: 3.06 | AL108: 2.885440817
E109: Capital District | H109: 3.06 | J109: 10453 | K109: 10453Bronx | L109: 10453 | M109: 10453 | N109: Zone I - Dunwoodie | O109: Consolidated Edison | P109: Bronx | Q109: New York City | R109: NYC | V109: Zone I - Dunwoodie | W109: NYC | Y109: New York | AA109: NYC | AB109: New York | AC109: 10163 | AD109: Consolidated Edison | AE109: Consolidated Edison | AF109: Consolidated Edison | AG109: Consolidated Edison | AH109: 0.2211 | AI109: 1.038 | AJ109: 2.754668333 | AK109: 3.06 | AL109: 2.885440817
E110: North Country | H110: 3.39 | J110: 10458 | K110: 10458Bronx | L110: 10458 | M110: 10458 | N110: Zone I - Dunwoodie | O110: Consolidated Edison | P110: Bronx | Q110: New York City | R110: NYC | U110: ConEd NYC | V110: Zone I - Dunwoodie | W110: NYC | Y110: New York | AA110: NYC | AB110: New York | AC110: 10164 | AD110: Consolidated Edison | AE110: Consolidated Edison | AF110: Consolidated Edison | AG110: Consolidated Edison | AH110: 0.2211 | AI110: 1.038 | AJ110: 2.754668333 | AK110: 3.06 | AL110: 2.885440817
E111: Central | H111: 3.08 | J111: 10463 | K111: 10463Bronx | L111: 10463 | M111: 10463 | N111: Zone I - Dunwoodie | O111: Consolidated Edison | P111: Bronx | Q111: New York City | R111: NYC | U111: ConEd NYC | V111: Zone I - Dunwoodie | W111: NYC | Y111: New York | AA111: NYC | AB111: New York | AC111: 10165 | AD111: Consolidated Edison | AE111: Consolidated Edison | AF111: Consolidated Edison | AG111: Consolidated Edison | AH111: 0.2211 | AI111: 1.038 | AJ111: 2.754668333 | AK111: 3.06 | AL111: 2.885440817
E112: Western | H112: 3.03 | J112: 10466 | K112: 10466Bronx | L112: 10466 | M112: 10466 | N112: Zone I - Dunwoodie | O112: Consolidated Edison | P112: Bronx | Q112: New York City | R112: NYC | U112: ConEd NYC | V112: Zone I - Dunwoodie | W112: NYC | Y112: New York | AA112: NYC | AB112: New York | AC112: 10166 | AD112: Consolidated Edison | AE112: Consolidated Edison | AF112: Consolidated Edison | AG112: Consolidated Edison | AH112: 0.2211 | AI112: 1.038 | AJ112: 2.754668333 | AK112: 3.06 | AL112: 2.885440817
J113: 10467 | K113: 10467Bronx | L113: 10467 | M113: 10467 | N113: Zone I - Dunwoodie | O113: Consolidated Edison | P113: Bronx | Q113: New York City | R113: NYC | U113: ConEd NYC | V113: Zone I - Dunwoodie | W113: NYC | Y113: New York | AA113: NYC | AB113: New York | AC113: 10167 | AD113: Consolidated Edison | AE113: Consolidated Edison | AF113: Consolidated Edison | AG113: Consolidated Edison | AH113: 0.2211 | AI113: 1.038 | AJ113: 2.754668333 | AK113: 3.06 | AL113: 2.885440817
E114: Zip | F114: =VLOOKUP(B2,$M$2:$T$2159,8,) ->  | H114: =VLOOKUP(F114,E107:H112,4,) ->  | J114: 10468 | K114: 10468Bronx | L114: 10468 | M114: 10468 | N114: Zone I - Dunwoodie | O114: Consolidated Edison | P114: Bronx | Q114: New York City | R114: NYC | U114: ConEd NYC | V114: Zone I - Dunwoodie | W114: NYC | Y114: New York | AA114: NYC | AB114: New York | AC114: 10168 | AD114: Consolidated Edison | AE114: Consolidated Edison | AF114: Consolidated Edison | AG114: Consolidated Edison | AH114: 0.2211 | AI114: 1.038 | AJ114: 2.754668333 | AK114: 3.06 | AL114: 2.885440817
E115: County | F115: =VLOOKUP(B3,P2:T2159,5,) ->  | H115: =VLOOKUP(F115,E107:H112,4,) ->  | J115: 10469 | K115: 10469Bronx | L115: 10469 | M115: 10469 | N115: Zone I - Dunwoodie | O115: Consolidated Edison | P115: Bronx | Q115: New York City | R115: NYC | U115: ConEd NYC | V115: Zone I - Dunwoodie | W115: NYC | Y115: New York | AA115: NYC | AB115: New York | AC115: 10169 | AD115: Consolidated Edison | AE115: Consolidated Edison | AF115: Consolidated Edison | AG115: Consolidated Edison | AH115: 0.2211 | AI115: 1.038 | AJ115: 2.754668333 | AK115: 3.06 | AL115: 2.885440817
F116: Final | H116: =IF(ISERROR(H114),H115,H114) ->  | J116: 10470 | K116: 10470Bronx | L116: 10470 | M116: 10470 | N116: Zone I - Dunwoodie | O116: Consolidated Edison | P116: Bronx | Q116: New York City | R116: NYC | U116: ConEd NYC | V116: Zone I - Dunwoodie | W116: NYC | Y116: New York | AA116: NYC | AB116: New York | AC116: 10170 | AD116: Consolidated Edison | AE116: Consolidated Edison | AF116: Consolidated Edison | AG116: Consolidated Edison | AH116: 0.2211 | AI116: 1.038 | AJ116: 2.754668333 | AK116: 3.06 | AL116: 2.885440817
J117: 10471 | K117: 10471Bronx | L117: 10471 | M117: 10471 | N117: Zone I - Dunwoodie | O117: Consolidated Edison | P117: Bronx | Q117: New York City | R117: NYC | U117: ConEd NYC | V117: Zone I - Dunwoodie | W117: NYC | Y117: New York | AA117: NYC | AB117: New York | AC117: 10171 | AD117: Consolidated Edison | AE117: Consolidated Edison | AF117: Consolidated Edison | AG117: Consolidated Edison | AH117: 0.2211 | AI117: 1.038 | AJ117: 2.754668333 | AK117: 3.06 | AL117: 2.885440817
E118: Pellet Wood (Home Monitoring Program) | H118: 2022-2023 Avg | J118: 10475 | K118: 10475Bronx | L118: 10475 | M118: 10475 | N118: Zone I - Dunwoodie | O118: Consolidated Edison | P118: Bronx | Q118: New York City | R118: NYC | U118: ConEd NYC | V118: Zone I - Dunwoodie | W118: NYC | Y118: New York | AA118: NYC | AB118: New York | AC118: 10172 | AD118: Consolidated Edison | AE118: Consolidated Edison | AF118: Consolidated Edison | AG118: Consolidated Edison | AH118: 0.2211 | AI118: 1.038 | AJ118: 2.754668333 | AK118: 3.06 | AL118: 2.885440817
E119: Region | H119: $ / Ton | J119: 10451 | K119: 10451Bronx | L119: 10451 | M119: 10451 | N119: Zone J - New York City | O119: Consolidated Edison | P119: Bronx | Q119: New York City | R119: NYC | U119: ConEd NYC | V119: Zone J - New York City | W119: NYC | Y119: New York | AA119: NYC | AB119: New York | AC119: 10173 | AD119: Consolidated Edison | AE119: Consolidated Edison | AF119: Consolidated Edison | AG119: Consolidated Edison | AH119: 0.2211 | AI119: 1.038 | AJ119: 2.754668333 | AK119: 3.06 | AL119: 2.885440817
E120: Long Island | H120: 298.69 | J120: 10452 | K120: 10452Bronx | L120: 10452 | M120: 10452 | N120: Zone J - New York City | O120: Consolidated Edison | P120: Bronx | Q120: New York City | R120: NYC | U120: ConEd NYC | V120: Zone J - New York City | W120: NYC | Y120: New York | AA120: NYC | AB120: New York | AC120: 10174 | AD120: Consolidated Edison | AE120: Consolidated Edison | AF120: Consolidated Edison | AG120: Consolidated Edison | AH120: 0.2211 | AI120: 1.038 | AJ120: 2.754668333 | AK120: 3.06 | AL120: 2.885440817
E121: Hudson Valley | H121: 284.21 | J121: 10454 | K121: 10454Bronx | L121: 10454 | M121: 10454 | N121: Zone J - New York City | O121: Consolidated Edison | P121: Bronx | Q121: New York City | R121: NYC | U121: ConEd NYC | V121: Zone J - New York City | W121: NYC | Y121: New York | AA121: NYC | AB121: New York | AC121: 10175 | AD121: Consolidated Edison | AE121: Consolidated Edison | AF121: Consolidated Edison | AG121: Consolidated Edison | AH121: 0.2211 | AI121: 1.038 | AJ121: 2.754668333 | AK121: 3.06 | AL121: 2.885440817
E122: Capital District | H122: 271.99 | J122: 10455 | K122: 10455Bronx | L122: 10455 | M122: 10455 | N122: Zone J - New York City | O122: Consolidated Edison | P122: Bronx | Q122: New York City | R122: NYC | U122: ConEd NYC | V122: Zone J - New York City | W122: NYC | Y122: New York | AA122: NYC | AB122: New York | AC122: 10176 | AD122: Consolidated Edison | AE122: Consolidated Edison | AF122: Consolidated Edison | AG122: Consolidated Edison | AH122: 0.2211 | AI122: 1.038 | AJ122: 2.754668333 | AK122: 3.06 | AL122: 2.885440817
E123: North Country | H123: 254.18 | J123: 10456 | K123: 10456Bronx | L123: 10456 | M123: 10456 | N123: Zone J - New York City | O123: Consolidated Edison | P123: Bronx | Q123: New York City | R123: NYC | U123: ConEd NYC | V123: Zone J - New York City | W123: NYC | Y123: New York | AA123: NYC | AB123: New York | AC123: 10177 | AD123: Consolidated Edison | AE123: Consolidated Edison | AF123: Consolidated Edison | AG123: Consolidated Edison | AH123: 0.2211 | AI123: 1.038 | AJ123: 2.754668333 | AK123: 3.06 | AL123: 2.885440817
E124: Central Region | H124: 246.88 | J124: 10457 | K124: 10457Bronx | L124: 10457 | M124: 10457 | N124: Zone J - New York City | O124: Consolidated Edison | P124: Bronx | Q124: New York City | R124: NYC | U124: ConEd NYC | V124: Zone J - New York City | W124: NYC | Y124: New York | AA124: NYC | AB124: New York | AC124: 10178 | AD124: Consolidated Edison | AE124: Consolidated Edison | AF124: Consolidated Edison | AG124: Consolidated Edison | AH124: 0.2211 | AI124: 1.038 | AJ124: 2.754668333 | AK124: 3.06 | AL124: 2.885440817
E125: Western Region | H125: 200.29 | J125: 10459 | K125: 10459Bronx | L125: 10459 | M125: 10459 | N125: Zone J - New York City | O125: Consolidated Edison | P125: Bronx | Q125: New York City | R125: NYC | U125: ConEd NYC | V125: Zone J - New York City | W125: NYC | Y125: New York | AA125: NYC | AB125: New York | AC125: 10179 | AD125: Consolidated Edison | AE125: Consolidated Edison | AF125: Consolidated Edison | AG125: Consolidated Edison | AH125: 0.2211 | AI125: 1.038 | AJ125: 2.754668333 | AK125: 3.06 | AL125: 2.885440817
J126: 10460 | K126: 10460Bronx | L126: 10460 | M126: 10460 | N126: Zone J - New York City | O126: Consolidated Edison | P126: Bronx | Q126: New York City | R126: NYC | U126: ConEd NYC | V126: Zone J - New York City | W126: NYC | Y126: New York | AA126: NYC | AB126: New York | AC126: 10185 | AD126: Consolidated Edison | AE126: Consolidated Edison | AF126: Consolidated Edison | AG126: Consolidated Edison | AH126: 0.2211 | AI126: 1.038 | AJ126: 2.754668333 | AK126: 3.06 | AL126: 2.885440817
E127: Zip | F127: =VLOOKUP(B2,$M$2:$X$215801,12,) ->  | H127: =VLOOKUP(F127,E120:H125,4,) ->  | J127: 10461 | K127: 10461Bronx | L127: 10461 | M127: 10461 | N127: Zone J - New York City | O127: Consolidated Edison | P127: Bronx | Q127: New York City | R127: NYC | U127: ConEd NYC | V127: Zone J - New York City | W127: NYC | Y127: New York | AB127: New York | AC127: 10197 | AD127: Consolidated Edison | AE127: Consolidated Edison | AH127: 0.1337 | AI127: 1.403 | AJ127: 2.754668333 | AK127: 3.06 | AL127: 2.885440817
E128: County | F128: =VLOOKUP(B3,P2:X21581,9,) ->  | H128: =VLOOKUP(F128,E120:H125,4,) ->  | J128: 10462 | K128: 10462Bronx | L128: 10462 | M128: 10462 | N128: Zone J - New York City | O128: Consolidated Edison | P128: Bronx | Q128: New York City | R128: NYC | U128: ConEd NYC | V128: Zone J - New York City | W128: NYC | Y128: New York | AA128: NYC | AB128: New York | AC128: 10199 | AD128: Consolidated Edison | AE128: Consolidated Edison | AF128: Consolidated Edison | AG128: Consolidated Edison | AH128: 0.2211 | AI128: 1.038 | AJ128: 2.754668333 | AK128: 3.06 | AL128: 2.885440817
F129: Final | H129: =IF(ISERROR(H127),H128,H127) ->  | J129: 10465 | K129: 10465Bronx | L129: 10465 | M129: 10465 | N129: Zone J - New York City | O129: Consolidated Edison | P129: Bronx | Q129: New York City | R129: NYC | U129: ConEd NYC | V129: Zone J - New York City | W129: NYC | Y129: New York | AA129: NYC | AB129: New York | AC129: 10203 | AD129: Consolidated Edison | AE129: Consolidated Edison | AF129: Consolidated Edison | AG129: Consolidated Edison | AH129: 0.2211 | AI129: 1.038 | AJ129: 2.754668333 | AK129: 3.06 | AL129: 2.885440817
J130: 10472 | K130: 10472Bronx | L130: 10472 | M130: 10472 | N130: Zone J - New York City | O130: Consolidated Edison | P130: Bronx | Q130: New York City | R130: NYC | U130: ConEd NYC | V130: Zone J - New York City | W130: NYC | Y130: New York | AA130: NYC | AB130: New York | AC130: 10211 | AD130: Consolidated Edison | AE130: Consolidated Edison | AF130: Consolidated Edison | AG130: Consolidated Edison | AH130: 0.2211 | AI130: 1.038 | AJ130: 2.754668333 | AK130: 3.06 | AL130: 2.885440817
J131: 10473 | K131: 10473Bronx | L131: 10473 | M131: 10473 | N131: Zone J - New York City | O131: Consolidated Edison | P131: Bronx | Q131: New York City | R131: NYC | U131: ConEd NYC | V131: Zone J - New York City | W131: NYC | Y131: New York | AA131: NYC | AB131: New York | AC131: 10212 | AD131: Consolidated Edison | AE131: Consolidated Edison | AF131: Consolidated Edison | AG131: Consolidated Edison | AH131: 0.2211 | AI131: 1.038 | AJ131: 2.754668333 | AK131: 3.06 | AL131: 2.885440817
J132: =L132*1 -> 10474 | K132: 10474Bronx | L132: 10474 | M132: 10474 | N132: Zone J - New York City | O132: Consolidated Edison | P132: Bronx | Q132: New York City | R132: NYC | U132: ConEd NYC | V132: Zone J - New York City | W132: NYC | Y132: New York | AA132: =VLOOKUP(AC132,J:R,9,) -> NYC | AB132: New York | AC132: 10213 | AD132: Consolidated Edison | AE132: Consolidated Edison | AF132: Consolidated Edison | AG132: Consolidated Edison | AH132: 0.2211 | AI132: 1.038 | AJ132: 2.754668333 | AK132: 3.06 | AL132: 2.885440817
J133: 10464 | K133: 10464Bronx | L133: 10464 | M133: 10464 | P133: Bronx | Q133: New York City | R133: NYC | U133: ConEd NYC | W133: NYC | Y133: New York | AA133: NYC | AB133: New York | AC133: 10242 | AD133: Consolidated Edison | AE133: Consolidated Edison | AF133: Consolidated Edison | AG133: Consolidated Edison | AH133: 0.2211 | AI133: 1.038 | AJ133: 2.754668333 | AK133: 3.06 | AL133: 2.885440817
J134: 13737 | K134: 13737Broome | L134: 13737 | M134: 13737 | N134: Zone C - Central | O134: New York State Electric and Gas | P134: Broome | Q134: Southern Tier | R134: Central | S134: Central | T134: Central | U134: ConEd NYC | V134: Zone C - Central | W134: Central | X134: Central Region | Y134: Binghamton | AA134: NYC | AB134: New York | AC134: 10249 | AD134: Consolidated Edison | AE134: Consolidated Edison | AF134: Consolidated Edison | AG134: Consolidated Edison | AH134: 0.2211 | AI134: 1.038 | AJ134: 2.754668333 | AK134: 3.06 | AL134: 2.885440817
J135: 13744 | K135: 13744Broome | L135: 13744 | M135: 13744 | N135: Zone C - Central | O135: New York State Electric and Gas | P135: Broome | Q135: Southern Tier | R135: Central | S135: Central | T135: Central | V135: Zone C - Central | W135: Central | X135: Central Region | Y135: Binghamton | AA135: NYC | AB135: New York | AC135: 10256 | AD135: Consolidated Edison | AE135: Consolidated Edison | AF135: Consolidated Edison | AG135: Consolidated Edison | AH135: 0.2211 | AI135: 1.038 | AJ135: 2.754668333 | AK135: 3.06 | AL135: 2.885440817
J136: 13745 | K136: 13745Broome | L136: 13745 | M136: 13745 | N136: Zone C - Central | O136: New York State Electric and Gas | P136: Broome | Q136: Southern Tier | R136: Central | S136: Central | T136: Central | V136: Zone C - Central | W136: Central | X136: Central Region | Y136: Binghamton | AA136: NYC | AB136: New York | AC136: 10257 | AD136: Consolidated Edison | AE136: Consolidated Edison | AF136: Consolidated Edison | AG136: Consolidated Edison | AH136: 0.2211 | AI136: 1.038 | AJ136: 2.754668333 | AK136: 3.06 | AL136: 2.885440817
J137: 13748 | K137: 13748Broome | L137: 13748 | M137: 13748 | N137: Zone C - Central | O137: New York State Electric and Gas | P137: Broome | Q137: Southern Tier | R137: Central | S137: Central | T137: Central | V137: Zone C - Central | W137: Central | X137: Central Region | Y137: Binghamton | AA137: NYC | AB137: New York | AC137: 10258 | AD137: Consolidated Edison | AE137: Consolidated Edison | AF137: Consolidated Edison | AG137: Consolidated Edison | AH137: 0.2211 | AI137: 1.038 | AJ137: 2.754668333 | AK137: 3.06 | AL137: 2.885440817
J138: 13749 | K138: 13749Broome | L138: 13749 | M138: 13749 | N138: Zone C - Central | O138: New York State Electric and Gas | P138: Broome | Q138: Southern Tier | R138: Central | S138: Central | T138: Central | V138: Zone C - Central | W138: Central | X138: Central Region | Y138: Binghamton | AA138: NYC | AB138: New York | AC138: 10259 | AD138: Consolidated Edison | AE138: Consolidated Edison | AF138: Consolidated Edison | AG138: Consolidated Edison | AH138: 0.2211 | AI138: 1.038 | AJ138: 2.754668333 | AK138: 3.06 | AL138: 2.885440817
J139: 13760 | K139: 13760Broome | L139: 13760 | M139: 13760 | N139: Zone C - Central | O139: New York State Electric and Gas | P139: Broome | Q139: Southern Tier | R139: Central | S139: Central | T139: Central | V139: Zone C - Central | W139: Central | X139: Central Region | Y139: Binghamton | AA139: NYC | AB139: New York | AC139: 10260 | AD139: Consolidated Edison | AE139: Consolidated Edison | AF139: Consolidated Edison | AG139: Consolidated Edison | AH139: 0.2211 | AI139: 1.038 | AJ139: 2.754668333 | AK139: 3.06 | AL139: 2.885440817
J140: 13761 | K140: 13761Broome | L140: 13761 | M140: 13761 | N140: Zone C - Central | O140: New York State Electric and Gas | P140: Broome | Q140: Southern Tier | R140: Central | S140: Central | T140: Central | V140: Zone C - Central | W140: Central | X140: Central Region | Y140: Binghamton | AA140: NYC | AB140: New York | AC140: 10261 | AD140: Consolidated Edison | AE140: Consolidated Edison | AF140: Consolidated Edison | AG140: Consolidated Edison | AH140: 0.2211 | AI140: 1.038 | AJ140: 2.754668333 | AK140: 3.06 | AL140: 2.885440817
J141: 13762 | K141: 13762Broome | L141: 13762 | M141: 13762 | N141: Zone C - Central | O141: New York State Electric and Gas | P141: Broome | Q141: Southern Tier | R141: Central | S141: Central | T141: Central | V141: Zone C - Central | W141: Central | X141: Central Region | Y141: Binghamton | AA141: NYC | AB141: New York | AC141: 10265 | AD141: Consolidated Edison | AE141: Consolidated Edison | AF141: Consolidated Edison | AG141: Consolidated Edison | AH141: 0.2211 | AI141: 1.038 | AJ141: 2.754668333 | AK141: 3.06 | AL141: 2.885440817
J142: 13763 | K142: 13763Broome | L142: 13763 | M142: 13763 | N142: Zone C - Central | O142: New York State Electric and Gas | P142: Broome | Q142: Southern Tier | R142: Central | S142: Central | T142: Central | V142: Zone C - Central | W142: Central | X142: Central Region | Y142: Binghamton | AA142: NYC | AB142: New York | AC142: 10268 | AD142: Consolidated Edison | AE142: Consolidated Edison | AF142: Consolidated Edison | AG142: Consolidated Edison | AH142: 0.2211 | AI142: 1.038 | AJ142: 2.754668333 | AK142: 3.06 | AL142: 2.885440817
J143: 13777 | K143: 13777Broome | L143: 13777 | M143: 13777 | N143: Zone C - Central | O143: New York State Electric and Gas | P143: Broome | Q143: Southern Tier | R143: Central | S143: Central | T143: Central | V143: Zone C - Central | W143: Central | X143: Central Region | Y143: Binghamton | AA143: NYC | AB143: New York | AC143: 10269 | AD143: Consolidated Edison | AE143: Consolidated Edison | AF143: Consolidated Edison | AG143: Consolidated Edison | AH143: 0.2211 | AI143: 1.038 | AJ143: 2.754668333 | AK143: 3.06 | AL143: 2.885440817
J144: 13790 | K144: 13790Broome | L144: 13790 | M144: 13790 | N144: Zone C - Central | O144: New York State Electric and Gas | P144: Broome | Q144: Southern Tier | R144: Central | S144: Central | T144: Central | V144: Zone C - Central | W144: Central | X144: Central Region | Y144: Binghamton | AA144: NYC | AB144: New York | AC144: 10270 | AD144: Consolidated Edison | AE144: Consolidated Edison | AF144: Consolidated Edison | AG144: Consolidated Edison | AH144: 0.2211 | AI144: 1.038 | AJ144: 2.754668333 | AK144: 3.06 | AL144: 2.885440817
J145: 13794 | K145: 13794Broome | L145: 13794 | M145: 13794 | N145: Zone C - Central | O145: New York State Electric and Gas | P145: Broome | Q145: Southern Tier | R145: Central | S145: Central | T145: Central | V145: Zone C - Central | W145: Central | X145: Central Region | Y145: Binghamton | AA145: NYC | AB145: New York | AC145: 10271 | AD145: Consolidated Edison | AE145: Consolidated Edison | AF145: Consolidated Edison | AG145: Consolidated Edison | AH145: 0.2211 | AI145: 1.038 | AJ145: 2.754668333 | AK145: 3.06 | AL145: 2.885440817
J146: 13795 | K146: 13795Broome | L146: 13795 | M146: 13795 | N146: Zone C - Central | O146: New York State Electric and Gas | P146: Broome | Q146: Southern Tier | R146: Central | S146: Central | T146: Central | V146: Zone C - Central | W146: Central | X146: Central Region | Y146: Binghamton | AA146: NYC | AB146: New York | AC146: 10272 | AD146: Consolidated Edison | AE146: Consolidated Edison | AF146: Consolidated Edison | AG146: Consolidated Edison | AH146: 0.2211 | AI146: 1.038 | AJ146: 2.754668333 | AK146: 3.06 | AL146: 2.885440817
J147: 13797 | K147: 13797Broome | L147: 13797 | M147: 13797 | N147: Zone C - Central | O147: New York State Electric and Gas | P147: Broome | Q147: Southern Tier | R147: Central | S147: Central | T147: Central | V147: Zone C - Central | W147: Central | X147: Central Region | Y147: Binghamton | AA147: NYC | AB147: New York | AC147: 10273 | AD147: Consolidated Edison | AE147: Consolidated Edison | AF147: Consolidated Edison | AG147: Consolidated Edison | AH147: 0.2211 | AI147: 1.038 | AJ147: 2.754668333 | AK147: 3.06 | AL147: 2.885440817
J148: 13802 | K148: 13802Broome | L148: 13802 | M148: 13802 | N148: Zone C - Central | O148: New York State Electric and Gas | P148: Broome | Q148: Southern Tier | R148: Central | S148: Central | T148: Central | V148: Zone C - Central | W148: Central | X148: Central Region | Y148: Binghamton | AA148: NYC | AB148: New York | AC148: 10274 | AD148: Consolidated Edison | AE148: Consolidated Edison | AF148: Consolidated Edison | AG148: Consolidated Edison | AH148: 0.2211 | AI148: 1.038 | AJ148: 2.754668333 | AK148: 3.06 | AL148: 2.885440817
J149: 13833 | K149: 13833Broome | L149: 13833 | M149: 13833 | N149: Zone C - Central | O149: New York State Electric and Gas | P149: Broome | Q149: Southern Tier | R149: Central | S149: Central | T149: Central | V149: Zone C - Central | W149: Central | X149: Central Region | Y149: Binghamton | AA149: NYC | AB149: New York | AC149: 10275 | AD149: Consolidated Edison | AE149: Consolidated Edison | AF149: Consolidated Edison | AG149: Consolidated Edison | AH149: 0.2211 | AI149: 1.038 | AJ149: 2.754668333 | AK149: 3.06 | AL149: 2.885440817
J150: 13848 | K150: 13848Broome | L150: 13848 | M150: 13848 | N150: Zone C - Central | O150: New York State Electric and Gas | P150: Broome | Q150: Southern Tier | R150: Central | S150: Central | T150: Central | V150: Zone C - Central | W150: Central | X150: Central Region | Y150: Binghamton | AA150: NYC | AB150: New York | AC150: 10276 | AD150: Consolidated Edison | AE150: Consolidated Edison | AF150: Consolidated Edison | AG150: Consolidated Edison | AH150: 0.2211 | AI150: 1.038 | AJ150: 2.754668333 | AK150: 3.06 | AL150: 2.885440817
J151: 13850 | K151: 13850Broome | L151: 13850 | M151: 13850 | N151: Zone C - Central | O151: New York State Electric and Gas | P151: Broome | Q151: Southern Tier | R151: Central | S151: Central | T151: Central | V151: Zone C - Central | W151: Central | X151: Central Region | Y151: Binghamton | AA151: NYC | AB151: New York | AC151: 10277 | AD151: Consolidated Edison | AE151: Consolidated Edison | AF151: Consolidated Edison | AG151: Consolidated Edison | AH151: 0.2211 | AI151: 1.038 | AJ151: 2.754668333 | AK151: 3.06 | AL151: 2.885440817
J152: 13851 | K152: 13851Broome | L152: 13851 | M152: 13851 | N152: Zone C - Central | O152: New York State Electric and Gas | P152: Broome | Q152: Southern Tier | R152: Central | S152: Central | T152: Central | V152: Zone C - Central | W152: Central | X152: Central Region | Y152: Binghamton | AA152: NYC | AB152: New York | AC152: 10278 | AD152: Consolidated Edison | AE152: Consolidated Edison | AF152: Consolidated Edison | AG152: Consolidated Edison | AH152: 0.2211 | AI152: 1.038 | AJ152: 2.754668333 | AK152: 3.06 | AL152: 2.885440817
J153: 13862 | K153: 13862Broome | L153: 13862 | M153: 13862 | N153: Zone C - Central | O153: New York State Electric and Gas | P153: Broome | Q153: Southern Tier | R153: Central | S153: Central | T153: Central | V153: Zone C - Central | W153: Central | X153: Central Region | Y153: Binghamton | AA153: NYC | AB153: New York | AC153: 10279 | AD153: Consolidated Edison | AE153: Consolidated Edison | AF153: Consolidated Edison | AG153: Consolidated Edison | AH153: 0.2211 | AI153: 1.038 | AJ153: 2.754668333 | AK153: 3.06 | AL153: 2.885440817
J154: 13865 | K154: 13865Broome | L154: 13865 | M154: 13865 | N154: Zone C - Central | O154: New York State Electric and Gas | P154: Broome | Q154: Southern Tier | R154: Central | S154: Central | T154: Central | V154: Zone C - Central | W154: Central | X154: Central Region | Y154: Binghamton | AA154: NYC | AB154: New York | AC154: 10280 | AD154: Consolidated Edison | AE154: Consolidated Edison | AF154: Consolidated Edison | AG154: Consolidated Edison | AH154: 0.2211 | AI154: 1.038 | AJ154: 2.754668333 | AK154: 3.06 | AL154: 2.885440817
J155: 13901 | K155: 13901Broome | L155: 13901 | M155: 13901 | N155: Zone C - Central | O155: New York State Electric and Gas | P155: Broome | Q155: Southern Tier | R155: Central | S155: Central | T155: Central | V155: Zone C - Central | W155: Central | X155: Central Region | Y155: Binghamton | AA155: NYC | AB155: New York | AC155: 10281 | AD155: Consolidated Edison | AE155: Consolidated Edison | AF155: Consolidated Edison | AG155: Consolidated Edison | AH155: 0.2211 | AI155: 1.038 | AJ155: 2.754668333 | AK155: 3.06 | AL155: 2.885440817
J156: 13902 | K156: 13902Broome | L156: 13902 | M156: 13902 | N156: Zone C - Central | O156: New York State Electric and Gas | P156: Broome | Q156: Southern Tier | R156: Central | S156: Central | T156: Central | V156: Zone C - Central | W156: Central | X156: Central Region | Y156: Binghamton | AA156: NYC | AB156: New York | AC156: 10282 | AD156: Consolidated Edison | AE156: Consolidated Edison | AF156: Consolidated Edison | AG156: Consolidated Edison | AH156: 0.2211 | AI156: 1.038 | AJ156: 2.754668333 | AK156: 3.06 | AL156: 2.885440817
J157: 13903 | K157: 13903Broome | L157: 13903 | M157: 13903 | N157: Zone C - Central | O157: New York State Electric and Gas | P157: Broome | Q157: Southern Tier | R157: Central | S157: Central | T157: Central | V157: Zone C - Central | W157: Central | X157: Central Region | Y157: Binghamton | AA157: NYC | AB157: New York | AC157: 10285 | AD157: Consolidated Edison | AE157: Consolidated Edison | AF157: Consolidated Edison | AG157: Consolidated Edison | AH157: 0.2211 | AI157: 1.038 | AJ157: 2.754668333 | AK157: 3.06 | AL157: 2.885440817
J158: 13904 | K158: 13904Broome | L158: 13904 | M158: 13904 | N158: Zone C - Central | O158: New York State Electric and Gas | P158: Broome | Q158: Southern Tier | R158: Central | S158: Central | T158: Central | V158: Zone C - Central | W158: Central | X158: Central Region | Y158: Binghamton | AA158: NYC | AB158: New York | AC158: 10286 | AD158: Consolidated Edison | AE158: Consolidated Edison | AF158: Consolidated Edison | AG158: Consolidated Edison | AH158: 0.2211 | AI158: 1.038 | AJ158: 2.754668333 | AK158: 3.06 | AL158: 2.885440817
J159: 13905 | K159: 13905Broome | L159: 13905 | M159: 13905 | N159: Zone C - Central | O159: New York State Electric and Gas | P159: Broome | Q159: Southern Tier | R159: Central | S159: Central | T159: Central | V159: Zone C - Central | W159: Central | X159: Central Region | Y159: Binghamton | AA159: NYC | AB159: New York | AC159: 10292 | AD159: Consolidated Edison | AE159: Consolidated Edison | AF159: Consolidated Edison | AG159: Consolidated Edison | AH159: 0.2211 | AI159: 1.038 | AJ159: 2.754668333 | AK159: 3.06 | AL159: 2.885440817
J160: 13754 | K160: 13754Broome | L160: 13754 | M160: 13754 | N160: Zone E - Mohawk Valley | O160: New York State Electric and Gas | P160: Broome | Q160: Southern Tier | R160: Central | S160: Central | T160: Central | V160: Zone E - Mohawk Valley | W160: Central | X160: Central Region | Y160: Binghamton | AA160: NYC | AB160: Richmond | AC160: 10301 | AD160: Consolidated Edison | AE160: KeySpan Energy Delivery New York (KEDNY) | AF160: Consolidated Edison | AG160: National Grid | AH160: 0.2211 | AI160: 1.038 | AJ160: 2.754668333 | AK160: 3.06 | AL160: 2.885440817
J161: 13787 | K161: 13787Broome | L161: 13787 | M161: 13787 | N161: Zone E - Mohawk Valley | O161: New York State Electric and Gas | P161: Broome | Q161: Southern Tier | R161: Central | S161: Central | T161: Central | V161: Zone E - Mohawk Valley | W161: Central | X161: Central Region | Y161: Binghamton | AA161: NYC | AB161: Richmond | AC161: 10302 | AD161: Consolidated Edison | AE161: KeySpan Energy Delivery New York (KEDNY) | AF161: Consolidated Edison | AG161: National Grid | AH161: 0.2211 | AI161: 1.038 | AJ161: 2.754668333 | AK161: 3.06 | AL161: 2.885440817
J162: 13813 | K162: 13813Broome | L162: 13813 | M162: 13813 | N162: Zone E - Mohawk Valley | O162: New York State Electric and Gas | P162: Broome | Q162: Southern Tier | R162: Central | S162: Central | T162: Central | V162: Zone E - Mohawk Valley | W162: Central | X162: Central Region | Y162: Binghamton | AA162: NYC | AB162: Richmond | AC162: 10303 | AD162: Consolidated Edison | AE162: KeySpan Energy Delivery New York (KEDNY) | AF162: Consolidated Edison | AG162: National Grid | AH162: 0.2211 | AI162: 1.038 | AJ162: 2.754668333 | AK162: 3.06 | AL162: 2.885440817
J163: 13826 | K163: 13826Broome | L163: 13826 | M163: 13826 | N163: Zone E - Mohawk Valley | O163: New York State Electric and Gas | P163: Broome | Q163: Southern Tier | R163: Central | S163: Central | T163: Central | V163: Zone E - Mohawk Valley | W163: Central | X163: Central Region | Y163: Binghamton | AA163: NYC | AB163: Richmond | AC163: 10304 | AD163: Consolidated Edison | AE163: KeySpan Energy Delivery New York (KEDNY) | AF163: Consolidated Edison | AG163: National Grid | AH163: 0.2211 | AI163: 1.038 | AJ163: 2.754668333 | AK163: 3.06 | AL163: 2.885440817
J164: 14042 | K164: 14042Cattaraugus | L164: 14042 | M164: 14042 | N164: Zone A - West | O164: National Grid | P164: Cattaraugus | Q164: Western New York | R164: Western | S164: Western | T164: Western | V164: Zone A - West | W164: Western | X164: Western Region | Y164: Buffalo | AA164: NYC | AB164: Richmond | AC164: 10305 | AD164: Consolidated Edison | AE164: KeySpan Energy Delivery New York (KEDNY) | AF164: Consolidated Edison | AG164: National Grid | AH164: 0.2211 | AI164: 1.038 | AJ164: 2.754668333 | AK164: 3.06 | AL164: 2.885440817
J165: 14060 | K165: 14060Cattaraugus | L165: 14060 | M165: 14060 | N165: Zone A - West | O165: National Grid | P165: Cattaraugus | Q165: Western New York | R165: Western | S165: Western | T165: Western | V165: Zone A - West | W165: Western | X165: Western Region | Y165: Buffalo | AA165: NYC | AB165: Richmond | AC165: 10306 | AD165: Consolidated Edison | AE165: KeySpan Energy Delivery New York (KEDNY) | AF165: Consolidated Edison | AG165: National Grid | AH165: 0.2211 | AI165: 1.038 | AJ165: 2.754668333 | AK165: 3.06 | AL165: 2.885440817
J166: 14065 | K166: 14065Cattaraugus | L166: 14065 | M166: 14065 | N166: Zone A - West | O166: National Grid | P166: Cattaraugus | Q166: Western New York | R166: Western | S166: Western | T166: Western | V166: Zone A - West | W166: Western | X166: Western Region | Y166: Buffalo | AA166: NYC | AB166: Richmond | AC166: 10307 | AD166: Consolidated Edison | AE166: KeySpan Energy Delivery New York (KEDNY) | AF166: Consolidated Edison | AG166: National Grid | AH166: 0.2211 | AI166: 1.038 | AJ166: 2.754668333 | AK166: 3.06 | AL166: 2.885440817
J167: 14101 | K167: 14101Cattaraugus | L167: 14101 | M167: 14101 | N167: Zone A - West | O167: National Grid | P167: Cattaraugus | Q167: Western New York | R167: Western | S167: Western | T167: Western | V167: Zone A - West | W167: Western | X167: Western Region | Y167: Buffalo | AA167: NYC | AB167: Richmond | AC167: 10308 | AD167: Consolidated Edison | AE167: KeySpan Energy Delivery New York (KEDNY) | AF167: Consolidated Edison | AG167: National Grid | AH167: 0.2211 | AI167: 1.038 | AJ167: 2.754668333 | AK167: 3.06 | AL167: 2.885440817
J168: 14133 | K168: 14133Cattaraugus | L168: 14133 | M168: 14133 | N168: Zone A - West | O168: National Grid | P168: Cattaraugus | Q168: Western New York | R168: Western | S168: Western | T168: Western | V168: Zone A - West | W168: Western | X168: Western Region | Y168: Buffalo | AA168: NYC | AB168: Richmond | AC168: 10309 | AD168: Consolidated Edison | AE168: KeySpan Energy Delivery New York (KEDNY) | AF168: Consolidated Edison | AG168: National Grid | AH168: 0.2211 | AI168: 1.038 | AJ168: 2.754668333 | AK168: 3.06 | AL168: 2.885440817
J169: 14171 | K169: 14171Cattaraugus | L169: 14171 | M169: 14171 | N169: Zone A - West | O169: National Grid | P169: Cattaraugus | Q169: Western New York | R169: Western | S169: Western | T169: Western | V169: Zone A - West | W169: Western | X169: Western Region | Y169: Buffalo | AA169: NYC | AB169: Richmond | AC169: 10310 | AD169: Consolidated Edison | AE169: KeySpan Energy Delivery New York (KEDNY) | AF169: Consolidated Edison | AG169: National Grid | AH169: 0.2211 | AI169: 1.038 | AJ169: 2.754668333 | AK169: 3.06 | AL169: 2.885440817
J170: 14173 | K170: 14173Cattaraugus | L170: 14173 | M170: 14173 | N170: Zone A - West | O170: National Grid | P170: Cattaraugus | Q170: Western New York | R170: Western | S170: Western | T170: Western | V170: Zone A - West | W170: Western | X170: Western Region | Y170: Buffalo | AA170: NYC | AB170: Richmond | AC170: 10311 | AD170: Consolidated Edison | AE170: KeySpan Energy Delivery New York (KEDNY) | AF170: Consolidated Edison | AG170: National Grid | AH170: 0.2211 | AI170: 1.038 | AJ170: 2.754668333 | AK170: 3.06 | AL170: 2.885440817
J171: 14706 | K171: 14706Cattaraugus | L171: 14706 | M171: 14706 | N171: Zone A - West | O171: National Grid | P171: Cattaraugus | Q171: Western New York | R171: Western | S171: Western | T171: Western | V171: Zone A - West | W171: Western | X171: Western Region | Y171: Buffalo | AA171: NYC | AB171: Richmond | AC171: 10312 | AD171: Consolidated Edison | AE171: KeySpan Energy Delivery New York (KEDNY) | AF171: Consolidated Edison | AG171: National Grid | AH171: 0.2211 | AI171: 1.038 | AJ171: 2.754668333 | AK171: 3.06 | AL171: 2.885440817
J172: 14719 | K172: 14719Cattaraugus | L172: 14719 | M172: 14719 | N172: Zone A - West | O172: National Grid | P172: Cattaraugus | Q172: Western New York | R172: Western | S172: Western | T172: Western | V172: Zone A - West | W172: Western | X172: Western Region | Y172: Buffalo | AA172: NYC | AB172: Richmond | AC172: 10313 | AD172: Consolidated Edison | AE172: KeySpan Energy Delivery New York (KEDNY) | AF172: Consolidated Edison | AG172: National Grid | AH172: 0.2211 | AI172: 1.038 | AJ172: 2.754668333 | AK172: 3.06 | AL172: 2.885440817
J173: 14729 | K173: 14729Cattaraugus | L173: 14729 | M173: 14729 | N173: Zone A - West | O173: National Grid | P173: Cattaraugus | Q173: Western New York | R173: Western | S173: Western | T173: Western | V173: Zone A - West | W173: Western | X173: Western Region | Y173: Buffalo | AA173: NYC | AB173: Richmond | AC173: 10314 | AD173: Consolidated Edison | AE173: KeySpan Energy Delivery New York (KEDNY) | AF173: Consolidated Edison | AG173: National Grid | AH173: 0.2211 | AI173: 1.038 | AJ173: 2.754668333 | AK173: 3.06 | AL173: 2.885440817
J174: 14731 | K174: 14731Cattaraugus | L174: 14731 | M174: 14731 | N174: Zone A - West | O174: National Grid | P174: Cattaraugus | Q174: Western New York | R174: Western | S174: Western | T174: Western | V174: Zone A - West | W174: Western | X174: Western Region | Y174: Buffalo | AA174: NYC | AB174: Bronx | AC174: 10451 | AD174: Consolidated Edison | AE174: Consolidated Edison | AF174: Consolidated Edison | AG174: Consolidated Edison | AH174: 0.2211 | AI174: 1.038 | AJ174: 2.754668333 | AK174: 3.06 | AL174: 2.885440817
J175: 14737 | K175: 14737Cattaraugus | L175: 14737 | M175: 14737 | N175: Zone A - West | O175: National Grid | P175: Cattaraugus | Q175: Western New York | R175: Western | S175: Western | T175: Western | V175: Zone A - West | W175: Western | X175: Western Region | Y175: Buffalo | AA175: NYC | AB175: Bronx | AC175: 10452 | AD175: Consolidated Edison | AE175: Consolidated Edison | AF175: Consolidated Edison | AG175: Consolidated Edison | AH175: 0.2211 | AI175: 1.038 | AJ175: 2.754668333 | AK175: 3.06 | AL175: 2.885440817
J176: 14741 | K176: 14741Cattaraugus | L176: 14741 | M176: 14741 | N176: Zone A - West | O176: National Grid | P176: Cattaraugus | Q176: Western New York | R176: Western | S176: Western | T176: Western | V176: Zone A - West | W176: Western | X176: Western Region | Y176: Buffalo | AA176: NYC | AB176: Bronx | AC176: 10453 | AD176: Consolidated Edison | AE176: Consolidated Edison | AF176: Consolidated Edison | AG176: Consolidated Edison | AH176: 0.2211 | AI176: 1.038 | AJ176: 2.754668333 | AK176: 3.06 | AL176: 2.885440817
J177: 14743 | K177: 14743Cattaraugus | L177: 14743 | M177: 14743 | N177: Zone A - West | O177: National Grid | P177: Cattaraugus | Q177: Western New York | R177: Western | S177: Western | T177: Western | V177: Zone A - West | W177: Western | X177: Western Region | Y177: Buffalo | AA177: NYC | AB177: Bronx | AC177: 10454 | AD177: Consolidated Edison | AE177: Consolidated Edison | AF177: Consolidated Edison | AG177: Consolidated Edison | AH177: 0.2211 | AI177: 1.038 | AJ177: 2.754668333 | AK177: 3.06 | AL177: 2.885440817
J178: 14748 | K178: 14748Cattaraugus | L178: 14748 | M178: 14748 | N178: Zone A - West | O178: National Grid | P178: Cattaraugus | Q178: Western New York | R178: Western | S178: Western | T178: Western | V178: Zone A - West | W178: Western | X178: Western Region | Y178: Buffalo | AA178: NYC | AB178: Bronx | AC178: 10455 | AD178: Consolidated Edison | AE178: Consolidated Edison | AF178: Consolidated Edison | AG178: Consolidated Edison | AH178: 0.2211 | AI178: 1.038 | AJ178: 2.754668333 | AK178: 3.06 | AL178: 2.885440817
J179: 14753 | K179: 14753Cattaraugus | L179: 14753 | M179: 14753 | N179: Zone A - West | O179: National Grid | P179: Cattaraugus | Q179: Western New York | R179: Western | S179: Western | T179: Western | V179: Zone A - West | W179: Western | X179: Western Region | Y179: Buffalo | AA179: NYC | AB179: Bronx | AC179: 10456 | AD179: Consolidated Edison | AE179: Consolidated Edison | AF179: Consolidated Edison | AG179: Consolidated Edison | AH179: 0.2211 | AI179: 1.038 | AJ179: 2.754668333 | AK179: 3.06 | AL179: 2.885440817
J180: 14760 | K180: 14760Cattaraugus | L180: 14760 | M180: 14760 | N180: Zone A - West | O180: National Grid | P180: Cattaraugus | Q180: Western New York | R180: Western | S180: Western | T180: Western | V180: Zone A - West | W180: Western | X180: Western Region | Y180: Buffalo | AA180: NYC | AB180: Bronx | AC180: 10457 | AD180: Consolidated Edison | AE180: Consolidated Edison | AF180: Consolidated Edison | AG180: Consolidated Edison | AH180: 0.2211 | AI180: 1.038 | AJ180: 2.754668333 | AK180: 3.06 | AL180: 2.885440817
J181: 14766 | K181: 14766Cattaraugus | L181: 14766 | M181: 14766 | N181: Zone A - West | O181: National Grid | P181: Cattaraugus | Q181: Western New York | R181: Western | S181: Western | T181: Western | V181: Zone A - West | W181: Western | X181: Western Region | Y181: Buffalo | AA181: NYC | AB181: Bronx | AC181: 10458 | AD181: Consolidated Edison | AE181: Consolidated Edison | AF181: Consolidated Edison | AG181: Consolidated Edison | AH181: 0.2211 | AI181: 1.038 | AJ181: 2.754668333 | AK181: 3.06 | AL181: 2.885440817
J182: 14770 | K182: 14770Cattaraugus | L182: 14770 | M182: 14770 | N182: Zone A - West | O182: National Grid | P182: Cattaraugus | Q182: Western New York | R182: Western | S182: Western | T182: Western | V182: Zone A - West | W182: Western | X182: Western Region | Y182: Buffalo | AA182: NYC | AB182: Bronx | AC182: 10459 | AD182: Consolidated Edison | AE182: Consolidated Edison | AF182: Consolidated Edison | AG182: Consolidated Edison | AH182: 0.2211 | AI182: 1.038 | AJ182: 2.754668333 | AK182: 3.06 | AL182: 2.885440817
J183: 14778 | K183: 14778Cattaraugus | L183: 14778 | M183: 14778 | N183: Zone A - West | O183: National Grid | P183: Cattaraugus | Q183: Western New York | R183: Western | S183: Western | T183: Western | V183: Zone A - West | W183: Western | X183: Western Region | Y183: Buffalo | AA183: NYC | AB183: Bronx | AC183: 10460 | AD183: Consolidated Edison | AE183: Consolidated Edison | AF183: Consolidated Edison | AG183: Consolidated Edison | AH183: 0.2211 | AI183: 1.038 | AJ183: 2.754668333 | AK183: 3.06 | AL183: 2.885440817
J184: 14788 | K184: 14788Cattaraugus | L184: 14788 | M184: 14788 | N184: Zone A - West | O184: National Grid | P184: Cattaraugus | Q184: Western New York | R184: Western | S184: Western | T184: Western | V184: Zone A - West | W184: Western | X184: Western Region | Y184: Buffalo | AA184: NYC | AB184: Bronx | AC184: 10461 | AD184: Consolidated Edison | AE184: Consolidated Edison | AF184: Consolidated Edison | AG184: Consolidated Edison | AH184: 0.2211 | AI184: 1.038 | AJ184: 2.754668333 | AK184: 3.06 | AL184: 2.885440817
J185: 14041 | K185: 14041Cattaraugus | L185: 14041 | M185: 14041 | N185: Zone A - West | O185: New York State Electric and Gas | P185: Cattaraugus | Q185: Western New York | R185: Western | S185: Western | T185: Western | V185: Zone A - West | W185: Western | X185: Western Region | Y185: Buffalo | AA185: NYC | AB185: Bronx | AC185: 10462 | AD185: Consolidated Edison | AE185: Consolidated Edison | AF185: Consolidated Edison | AG185: Consolidated Edison | AH185: 0.2211 | AI185: 1.038 | AJ185: 2.754668333 | AK185: 3.06 | AL185: 2.885440817
J186: 14070 | K186: 14070Cattaraugus | L186: 14070 | M186: 14070 | N186: Zone A - West | O186: New York State Electric and Gas | P186: Cattaraugus | Q186: Western New York | R186: Western | S186: Western | T186: Western | V186: Zone A - West | W186: Western | X186: Western Region | Y186: Buffalo | AA186: NYC | AB186: Bronx | AC186: 10463 | AD186: Consolidated Edison | AE186: Consolidated Edison | AF186: Consolidated Edison | AG186: Consolidated Edison | AH186: 0.2211 | AI186: 1.038 | AJ186: 2.754668333 | AK186: 3.06 | AL186: 2.885440817
J187: 14129 | K187: 14129Cattaraugus | L187: 14129 | M187: 14129 | N187: Zone A - West | O187: New York State Electric and Gas | P187: Cattaraugus | Q187: Western New York | R187: Western | S187: Western | T187: Western | V187: Zone A - West | W187: Western | X187: Western Region | Y187: Buffalo | AA187: NYC | AB187: Bronx | AC187: 10464 | AD187: Consolidated Edison | AE187: Consolidated Edison | AF187: Consolidated Edison | AG187: Consolidated Edison | AH187: 0.2211 | AI187: 1.038 | AJ187: 2.754668333 | AK187: 3.06 | AL187: 2.885440817
J188: 14138 | K188: 14138Cattaraugus | L188: 14138 | M188: 14138 | N188: Zone A - West | O188: New York State Electric and Gas | P188: Cattaraugus | Q188: Western New York | R188: Western | S188: Western | T188: Western | V188: Zone A - West | W188: Western | X188: Western Region | Y188: Buffalo | AA188: NYC | AB188: Bronx | AC188: 10465 | AD188: Consolidated Edison | AE188: Consolidated Edison | AF188: Consolidated Edison | AG188: Consolidated Edison | AH188: 0.2211 | AI188: 1.038 | AJ188: 2.754668333 | AK188: 3.06 | AL188: 2.885440817
J189: 14168 | K189: 14168Cattaraugus | L189: 14168 | M189: 14168 | N189: Zone A - West | O189: New York State Electric and Gas | P189: Cattaraugus | Q189: Western New York | R189: Western | S189: Western | T189: Western | V189: Zone A - West | W189: Western | X189: Western Region | Y189: Buffalo | AA189: NYC | AB189: Bronx | AC189: 10466 | AD189: Consolidated Edison | AE189: Consolidated Edison | AF189: Consolidated Edison | AG189: Consolidated Edison | AH189: 0.2211 | AI189: 1.038 | AJ189: 2.754668333 | AK189: 3.06 | AL189: 2.885440817
J190: 14726 | K190: 14726Cattaraugus | L190: 14726 | M190: 14726 | N190: Zone A - West | O190: New York State Electric and Gas | P190: Cattaraugus | Q190: Western New York | R190: Western | S190: Western | T190: Western | V190: Zone A - West | W190: Western | X190: Western Region | Y190: Buffalo | AA190: NYC | AB190: Bronx | AC190: 10467 | AD190: Consolidated Edison | AE190: Consolidated Edison | AF190: Consolidated Edison | AG190: Consolidated Edison | AH190: 0.2211 | AI190: 1.038 | AJ190: 2.754668333 | AK190: 3.06 | AL190: 2.885440817
J191: 14730 | K191: 14730Cattaraugus | L191: 14730 | M191: 14730 | N191: Zone A - West | O191: New York State Electric and Gas | P191: Cattaraugus | Q191: Western New York | R191: Western | S191: Western | T191: Western | V191: Zone A - West | W191: Western | X191: Western Region | Y191: Buffalo | AA191: NYC | AB191: Bronx | AC191: 10468 | AD191: Consolidated Edison | AE191: Consolidated Edison | AF191: Consolidated Edison | AG191: Consolidated Edison | AH191: 0.2211 | AI191: 1.038 | AJ191: 2.754668333 | AK191: 3.06 | AL191: 2.885440817
J192: 14751 | K192: 14751Cattaraugus | L192: 14751 | M192: 14751 | N192: Zone A - West | O192: New York State Electric and Gas | P192: Cattaraugus | Q192: Western New York | R192: Western | S192: Western | T192: Western | V192: Zone A - West | W192: Western | X192: Western Region | Y192: Buffalo | AA192: NYC | AB192: Bronx | AC192: 10469 | AD192: Consolidated Edison | AE192: Consolidated Edison | AF192: Consolidated Edison | AG192: Consolidated Edison | AH192: 0.2211 | AI192: 1.038 | AJ192: 2.754668333 | AK192: 3.06 | AL192: 2.885440817
J193: 14772 | K193: 14772Cattaraugus | L193: 14772 | M193: 14772 | N193: Zone A - West | O193: New York State Electric and Gas | P193: Cattaraugus | Q193: Western New York | R193: Western | S193: Western | T193: Western | V193: Zone A - West | W193: Western | X193: Western Region | Y193: Buffalo | AA193: NYC | AB193: Bronx | AC193: 10470 | AD193: Consolidated Edison | AE193: Consolidated Edison | AF193: Consolidated Edison | AG193: Consolidated Edison | AH193: 0.2211 | AI193: 1.038 | AJ193: 2.754668333 | AK193: 3.06 | AL193: 2.885440817
J194: 14783 | K194: 14783Cattaraugus | L194: 14783 | M194: 14783 | N194: Zone A - West | O194: New York State Electric and Gas | P194: Cattaraugus | Q194: Western New York | R194: Western | S194: Western | T194: Western | V194: Zone A - West | W194: Western | X194: Western Region | Y194: Buffalo | AA194: NYC | AB194: Bronx | AC194: 10471 | AD194: Consolidated Edison | AE194: Consolidated Edison | AF194: Consolidated Edison | AG194: Consolidated Edison | AH194: 0.2211 | AI194: 1.038 | AJ194: 2.754668333 | AK194: 3.06 | AL194: 2.885440817
J195: 14755 | K195: 14755Cattaraugus | L195: 14755 | M195: 14755 | N195: Zone A - West | O195: Municipal Utilities | P195: Cattaraugus | Q195: Western New York | R195: Western | S195: Western | T195: Western | V195: Zone A - West | W195: Western | X195: Western Region | Y195: Buffalo | AA195: NYC | AB195: Bronx | AC195: 10472 | AD195: Consolidated Edison | AE195: Consolidated Edison | AF195: Consolidated Edison | AG195: Consolidated Edison | AH195: 0.2211 | AI195: 1.038 | AJ195: 2.754668333 | AK195: 3.06 | AL195: 2.885440817
J196: =L196*1 -> 14779 | K196: 14779Cattaraugus | L196: 14779 | M196: 14779 | N196: Zone A - West | O196: Municipal Utilities | P196: Cattaraugus | Q196: Western New York | R196: Western | S196: Western | T196: Western | V196: Zone A - West | W196: Western | X196: Western Region | Y196: Buffalo | AA196: =VLOOKUP(AC196,J:R,9,) -> NYC | AB196: Bronx | AC196: 10473 | AD196: Consolidated Edison | AE196: Consolidated Edison | AF196: Consolidated Edison | AG196: Consolidated Edison | AH196: 0.2211 | AI196: 1.038 | AJ196: 2.754668333 | AK196: 3.06 | AL196: 2.885440817
J197: 13033 | K197: 13033Cayuga | L197: 13033 | M197: 13033 | N197: Zone B - Genesee | O197: Rochester Gas and Electric | P197: Cayuga | Q197: Central New York | R197: Central | S197: Central | T197: Central | V197: Zone B - Genesee | W197: Central | X197: Central Region | Y197: Syracuse | AA197: NYC | AB197: Bronx | AC197: 10474 | AD197: Consolidated Edison | AE197: Consolidated Edison | AF197: Consolidated Edison | AG197: Consolidated Edison | AH197: 0.2211 | AI197: 1.038 | AJ197: 2.754668333 | AK197: 3.06 | AL197: 2.885440817
J198: 13064 | K198: 13064Cayuga | L198: 13064 | M198: 13064 | N198: Zone B - Genesee | O198: Rochester Gas and Electric | P198: Cayuga | Q198: Central New York | R198: Central | S198: Central | T198: Central | V198: Zone B - Genesee | W198: Central | X198: Central Region | Y198: Syracuse | AA198: NYC | AB198: Bronx | AC198: 10475 | AD198: Consolidated Edison | AE198: Consolidated Edison | AF198: Consolidated Edison | AG198: Consolidated Edison | AH198: 0.2211 | AI198: 1.038 | AJ198: 2.754668333 | AK198: 3.06 | AL198: 2.885440817
J199: 13111 | K199: 13111Cayuga | L199: 13111 | M199: 13111 | N199: Zone B - Genesee | O199: Rochester Gas and Electric | P199: Cayuga | Q199: Central New York | R199: Central | S199: Central | T199: Central | V199: Zone B - Genesee | W199: Central | X199: Central Region | Y199: Syracuse | AB199: New York | AC199: 10499 | AD199: Consolidated Edison | AE199: Consolidated Edison | AH199: 0.1337 | AI199: 1.403 | AJ199: 2.754668333 | AK199: 3.06 | AL199: 2.885440817
J200: 13113 | K200: 13113Cayuga | L200: 13113 | M200: 13113 | N200: Zone B - Genesee | O200: Rochester Gas and Electric | P200: Cayuga | Q200: Central New York | R200: Central | S200: Central | T200: Central | V200: Zone B - Genesee | W200: Central | X200: Central Region | Y200: Syracuse | AA200: Lower Hudson | AB200: Westchester | AC200: 10501 | AD200: New York State Electric and Gas | AE200: New York State Electric and Gas | AF200: New York State Electric and Gas | AG200: New York State Electric and Gas | AH200: 0.1163 | AI200: 0.667 | AJ200: 2.686218704 | AK200: 3.06 | AL200: 2.439836558
... 1987 more rows

Sheet Drop-Down Lists (hidden)
A2: Electric Utility Name Lookup | D2: Natural Gas List | F2: ZIP Code List | H2: County List | J2: Whole House?
A3: Central Hudson Gas and Electric | B3: Central Hudson Gas and Electric | D3: Central Hudson Gas and Electric | F3: 00501 | H3: Albany | J3: Yes | L3: =A3=B3 -> TRUE | M3: =VLOOKUP(B3,D:D,1,) -> Central Hudson Gas and Electric | O3: =VLOOKUP(D3,B:B,1,) -> Central Hudson Gas and Electric | Q3: Orange and Rockland Utilities | R3: Orange and Rockland
A4: Consolidated Edison | B4: Consolidated Edison | D4: Consolidated Edison | F4: 00544 | H4: Allegany | J4: No | L4: =A4=B4 -> TRUE | M4: =VLOOKUP(B4,D:D,1,) -> Consolidated Edison | O4: =VLOOKUP(D4,B:B,1,) -> Consolidated Edison | Q4: NYS Electric and Gas | R4: New York State Electric and Gas
A5: National Grid | B5: National Grid | D5: National Fuel Gas Distribution | F5: 06390 | H5: Bronx | L5: TRUE | Q5: Long Island Power Authority | R5: PSEG Long Island
A6: New York State Electric and Gas | B6: New York State Electric and Gas | D6: National Grid - Upstate | F6: 10001 | H6: Broome | L6: TRUE | M6: New York State Electric and Gas | Q6: St. Lawrence Gas | R6: St. Lawrence
A7: Orange and Rockland | B7: Orange and Rockland | D7: National Grid - Long Island | F7: 10002 | H7: Cattaraugus | L7: TRUE | M7: Orange and Rockland
A8: Rochester Gas and Electric | B8: Rochester Gas and Electric | D8: National Grid - NYC | F8: 10003 | H8: Cayuga | L8: TRUE | M8: Rochester Gas and Electric
A9: PSEG Long Island | B9: PSEG Long Island | D9: New York State Electric and Gas | F9: 10004 | H9: Chautauqua | L9: TRUE | O9: New York State Electric and Gas
A10: PSEG Long Island | B10: Muni or Coop (use Override) | D10: Orange and Rockland | F10: 10005 | H10: Chemung | L10: =A10=B10 -> FALSE | M10: =VLOOKUP(B10,D:D,1,) ->  | O10: Orange and Rockland
A11: Other | B11: Other | D11: Rochester Gas and Electric | F11: 10006 | H11: Chenango | L11: =A11=B11 -> TRUE | M11: =VLOOKUP(B11,D:D,1,) ->  | O11: Rochester Gas and Electric
D12: Corning Natural Gas | F12: 10007 | H12: Clinton | L12: =A12=B12 -> TRUE | M12: =VLOOKUP(B12,D:D,1,) ->  | O12: =VLOOKUP(D12,B:B,1,) -> 
D13: St. Lawrence | F13: 10008 | H13: Columbia | L13: =A13=B13 -> TRUE | M13: =VLOOKUP(B13,D:D,1,) -> 
F14: 10009 | H14: Cortland
F15: 10010 | H15: Delaware
F16: 10011 | H16: Dutchess
F17: 10012 | H17: Erie
F18: 10013 | H18: Essex
F19: 10014 | H19: Franklin
F20: 10016 | H20: Fulton
F21: 10017 | H21: Genesee
F22: 10018 | H22: Greene
F23: 10019 | H23: Hamilton
F24: 10020 | H24: Herkimer
F25: 10021 | H25: Jefferson
F26: 10022 | H26: Kings
F27: 10023 | H27: Lewis
F28: 10024 | H28: Livingston
F29: 10025 | H29: Madison
F30: 10026 | H30: Monroe
F31: 10027 | H31: Montgomery
F32: 10028 | H32: Nassau
F33: 10029 | H33: New York
F34: 10030 | H34: Niagara
F35: 10031 | H35: Oneida
F36: 10032 | H36: Onondaga
F37: 10033 | H37: Ontario
F38: 10034 | H38: Orange
F39: 10035 | H39: Orleans
F40: 10036 | H40: Oswego
F41: 10037 | H41: Otsego
F42: 10038 | H42: Putnam
F43: 10039 | H43: Queens
F44: 10040 | H44: Rensselaer
F45: 10041 | H45: Richmond
F46: 10043 | H46: Rockland
F47: 10044 | H47: Saratoga
F48: 10045 | H48: Schenectady
F49: 10055 | H49: Schoharie
F50: 10060 | H50: Schuyler
F51: 10065 | H51: Seneca
F52: 10069 | H52: St. Lawrence
F53: 10075 | H53: Steuben
F54: 10080 | H54: Suffolk
F55: 10081 | H55: Sullivan
F56: 10087 | H56: Tioga
F57: 10090 | H57: Tompkins
F58: 10101 | H58: Ulster
F59: 10102 | H59: Warren
F60: 10103 | H60: Washington
F61: 10104 | H61: Wayne
F62: 10105 | H62: Westchester
F63: 10106 | H63: Wyoming
F64: 10107 | H64: Yates
F65: 10108
F66: 10109
F67: 10110
F68: 10111
F69: 10112
F70: 10113
F71: 10114
F72: 10115
F73: 10116
F74: 10117
F75: 10118
F76: 10119
F77: 10120
F78: 10121
F79: 10122
F80: 10123
F81: 10124
F82: 10125
F83: 10126
F84: 10128
F85: 10129
F86: 10130
F87: 10131
F88: 10132
F89: 10133
F90: 10138
F91: 10150
F92: 10151
F93: 10152
F94: 10153
F95: 10154
F96: 10155
F97: 10156
F98: 10157
F99: 10158
F100: 10159
F101: 10160
F102: 10161
F103: 10162
F104: 10163
F105: 10164
F106: 10165
F107: 10166
F108: 10167
F109: 10168
F110: 10169
F111: 10170
F112: 10171
F113: 10172
F114: 10173
F115: 10174
F116: 10175
F117: 10176
F118: 10177
F119: 10178
F120: 10179
F121: 10185
F122: 10199
F123: 10203
F124: 10211
F125: 10212
F126: 10213
F127: 10242
F128: 10249
F129: 10256
F130: 10257
F131: 10258
F132: 10259
F133: 10260
F134: 10261
F135: 10265
F136: 10268
F137: 10269
F138: 10270
F139: 10271
F140: 10272
F141: 10273
F142: 10274
F143: 10275
F144: 10276
F145: 10277
F146: 10278
F147: 10279
F148: 10280
F149: 10281
F150: 10282
F151: 10285
F152: 10286
F153: 10292
F154: 10301
F155: 10302
F156: 10303
F157: 10304
F158: 10305
F159: 10306
F160: 10307
F161: 10308
F162: 10309
F163: 10310
F164: 10311
F165: 10312
F166: 10313
F167: 10314
F168: 10451
F169: 10452
F170: 10453
F171: 10454
F172: 10455
F173: 10456
F174: 10457
F175: 10458
F176: 10459
F177: 10460
F178: 10461
F179: 10462
F180: 10463
F181: 10464
F182: 10465
F183: 10466
F184: 10467
F185: 10468
F186: 10469
F187: 10470
F188: 10471
F189: 10472
F190: 10473
F191: 10474
F192: 10475
F193: 10501
F194: 10502
F195: 10503
F196: 10504
F197: 10505
F198: 10506
F199: 10507
F200: 10509
F201: 10510
... 1957 more rows
